Workbook

Sheet Descriptions
A1: Table | B1: Description
A2: Table S1 | B2: Summary of 57 cohorts included in the Psychiatric Genomics Consortium bipolar disorder GWAS (adapted from Mullins et al., Nat Genet, 2021).
A3: Table S2 | B3: Genome-wide significant loci for bipolar disorder showing the most significant SNP from each genomic region (adapted from Mullins et al., Nat Genet, 2021)
A4: Table S3 | B4: Results of conditional analysis in each BD risk locus using GCTA-COJO and GWAS summary statistics.
A5: Table S4 | B5: Number of SNPs (PIP >0.95) per GWS locus across fine-mapping methods, LD reference panels and fine-mapping windows.
A6: Table S5 | B6: Genomic annotations and functional consequences of fine-mapped SNPs.
A7: Table S6 | B7: Significant SMR results from BrainMeta eQTL and sQTL data and Brain-mMETA mQTL data for union consensus SNPs.
A8: Table S7 | B8: HLA variants with P < 5e-06 for association with bipolar disorder.
A9: Table S8 | B9: HLA variants with P < 1E-03, for association with bipolar disorder within the extended MHC locus (chr6:20,000,000-40,000,000), after conditioning on rs35202262.
A10: Table S9 | B10: Polygenic risk score analysis results for European and non European bipolar disorder cohorts.

Sheet Table S1
A1: Supplementary Table 1: Summary of 57 cohorts included in the Psychiatric Genomics Consortium bipolar disorder GWAS (adapted from Mullins et al., Nat Genet, 2021)
A2: Sample abbreviation^ | B2: Principal Investigators | C2: Sample Name | D2: Country of ascertainment | E2: Case N | F2: Control N | G2: N eff half | H2: Name of relevant ethics committee(s) or recruitment site(s) | I2: Ethics approved/ waived
A3: bmau | B3: Fullerton JM, Mitchell PB, Schofield PR, Martin NG | C3: BOMA-Australia | D3: Australia | E3: 329 | F3: 1810 | G3: 556 | H3: Cases: Mood Disorder Unit, Prince of Wales Hospital in Sydney & UNSW Human Research Ethics Committee (HREC12623, HREC09394). Controls: Queensland Institute of Medical Research | I3: approved
A4: bmg2 | B4: Rietschel M, Nöthen MM, Schulze TG, Forstner AJ | C4: BOMA-Germany II | D4: Germany | E4: 181 | F4: 478 | G4: 262 | H4: University Hospital Würzburg, Ethics Committee of the Medical Faculty of the University of Essen | I4: approved
A5: bmg3 | B5: Rietschel M, Nöthen MM, Schulze TG, Forstner AJ | C5: BOMA-Germany III | D5: Germany | E5: 489 | F5: 880 | G5: 628 | H5: Central Institute of Mental Health in Mannheim, University of Heidelberg, Max-Planck Institute of Psychiatry, Munich | I5: approved
A6: bmpo | B6: Hauser J, Lissowska J, Forstner AJ | C6: BOMA-Poland | D6: Poland | E6: 410 | F6: 689 | G6: 514 | H6: Department of Psychiatry, Poznan University of Medical Sciences, Cancer-Center and Institute of Oncology, Warsaw, Nofer Institute of Occupational Medicine, Lodz | I6: approved
A7: bmsp | B7: Rietschel M, Nöthen MM, Mayoral F | C7: BOMA-Spain | D7: Spain | E7: 253 | F7: 291 | G7: 270 | H7: Cases: Regional University Hospital of Malaga, University Hospital Reina Sofia of Córdoba, Provincial Hospital of Jaen; Hospital of Jerez de la Frontera (Cádiz); Hospital of Puerto Real (Cádiz); Hospital Punta Europa of Algeciras (Cádiz); and Hospital Universitario San Cecilio (Granada), Controls: Comité ético de Investigación Clínica (CEIC), Instituto Municipal de Asistencia Sanitaria, IMAS-IMIM, Barcelona | I7: approved
A8: bonn | B8: Rietschel M, Nöthen MM, Cichon S | C8: BOMA-Germany I | D8: Germany | E8: 669 | F8: 1246 | G8: 870 | H8: Cases: Department of Psychiatry and Psychotherapy at the University of Bonn, Central Institute of Mental Health in Mannheim, University of Heidelberg; Controls: Medical Faculty of Kiel (PopGen), Ethics Committee of the Bavarian Medical Association (KORA), Ethics Committee of the Medical Faculty of the University of Essen (Heinz Nixdorf Recall study) | I8: approved
A9: dub1 | B9: Corvin A | C9: Trinity College Dublin | D9: Ireland | E9: 150 | F9: 796 | G9: 252 | H9: Cases: Trinity College Dublin, Controls: Irish GeneBank | I9: approved
A10: edi1 | B10: Blackwood D | C10: University of Edinburgh | D10: Scotland | E10: 275 | F10: 272 | G10: 273 | H10: Multi-Centre Research Ethics Committee for Scotland | I10: approved
A11: fat2 | B11: Sklar P, Smoller J (FaST); Kelsoe J (TGEN) | C11: FaST, TGEN1,2 | D11: USA | E11: 722 | F11: 1027 | G11: 847 | H11: Indiana University, John Hopkins University, the NIMH Intramural Research Program, Washington University at St. Louis, University of Pennsylvania, University of Chicago, Rush Medical School, University of Iowa, University of California, San Diego, University of California, San Francisco, and University of Michigan | I11: approved
A12: fran | B12: Leboyer M | C12: French | D12: France | E12: 451 | F12: 1630 | G12: 706 | H12: Pitie ́-Salpetriere Hospital in Paris | I12: approved
A13: gain | B13: Kelsoe J | C13: BiGs: Genetic Association Information Network (GAIN) | D13: USA | E13: 706 | F13: 593 | G13: 644 | H13: Indiana University, John Hopkins University, the NIMH Intramural Research Program, Washington University at St. Louis, University of Pennsylvania, University of Chicago, Rush Medical School, University of Iowa, University of California, San Diego, University of California, San Francisco, and University of Michigan | I13: approved
A14: gsk1 | B14: Vincent J | C14: BACCS | D14: USA | E14: 706 | F14: 899 | G14: 790 | H14: Centre for Addiction & Mental Health Research Ethics Board in Toronto, College Research Ethics Committee King's College London | I14: approved
A15: hal2 | B15: Alda M (Nova Scotia); Perlis R, Smoller J (shared controls) | C15: Nova Scotia, MGH i2b2 controls | D15: Canada/USA | E15: 410 | F15: 479 | G15: 441 | H15: Cases: Specialty mood disorders clinics in Halifax and Ottawa (Canada), Controls: Massachusetts General Hospital Institutional Review Board | I15: cases: approved, controls: waived
A16: icuk | B16: O'Donovan M, Di Florio A, Craddock N, Jones L, Jones I | C16: International Cohort Collection for Bipolar Disorder (ICCBD) Bipolar Disorder Research Network (BDRN) | D16: UK | E16: 2456 | F16: 4069 | G16: 3063 | H16: West Midlands Multi-Centre Research Ethics Committee | I16: approved
A17: jst5 | B17: Li Q (Janssen); Ripke S (shared controls) | C17: Janssen, SAGE controls | D17: USA | E17: 646 | F17: 643 | G17: 644 | H17: Cases: Clinical trials (IDs: NCT00253162, NCT00257075, NCT00076115, NCT00299715, NCT00309699, and NCT00309686) conducted by Janssen Research & Development, LLC, institutional review board or human subjects board at each site, Controls: SAGE, dbGaP Study Accession: phs000092.v1.p1 | I17: cases: approved, controls: waived
A18: may1 | B18: Biernacka J, Frye M, McElroy S | C18: Mayo Clinic | D18: USA | E18: 929 | F18: 759 | G18: 835 | H18: Mayo Clinic Rochester, Minnesota; Lindner Center of HOPE/University of Cincinnati College of Medicine, Cincinnati Ohio; and the University of Minnesota, Minneapolis, Minnesota | I18: approved
A19: mich | B19: Boehnke M, Myers RM, Scott LJ | C19: Pritzker Neuropsychiatric Disorders Research Consortium (U Michigan) | D19: USA | E19: 481 | F19: 399 | G19: 436 | H19: University of Michigan, Indiana University, Johns Hopkins University, the NIMH Intramural Research Program, Rush-Presbyterian Medical Center in Chicago, University of California at Irvine, University of California at San Diego, University of Chicago, University of Iowa, University of Pennsylvania, and Washington University in St. Louis | I19: approved
A20: pf1e | B20: Paciga S | C20: Pfizer | D20: USA | E20: 375 | F20: 346 | G20: 359 | H20: Clincial trials (IDs NCT00141271, NCT00282464, NCT00483548), institutional review board and/or independent ethics committee at each center of recruitment | I20: approved
A21: rom3 | B21: Grigoroiu-Serbanescu M, Nöthen MM | C21: BOMA-Romania | D21: Romania | E21: 233 | F21: 198 | G21: 214 | H21: Alexandru Obregia Clinical Psychiatric Hospital, Bucharest, Romania | I21: approved
A22: st2c | B22: Sklar P, Smoller J; Stahl E (shared controls) | C22: Systematic Treatment Enhancement Program for Bipolar Disorder (STEP2), MIGEN controls | D22: USA | E22: 628 | F22: 1219 | G22: 828 | H22: Cases: clinical trial (ID NCT000125580), institutional review board of each participating institution, Controls: dbGAP phs000294.v1.p1 (MIGEN controls) | I22: cases: approved, controls:waived
A23: stp1 | B23: Sklar P, Smoller J | C23: Systematic Treatment Enhancement Program for Bipolar Disorder (STEP1) | D23: USA | E23: 920 | F23: 973 | G23: 945 | H23: Cases: clinical trial (ID NCT000125580), institutional review board of each participating institution, Controls: dbGAP phs000294.v1.p1 (MIGEN controls) | I23: cases: approved, controls:waived
A24: swa2 | B24: Landén M | C24: Swedish Bipolar Collection I (SWEBIC I) Affy | D24: Sweden | E24: 885 | F24: 2252 | G24: 1270 | H24: Karolinska Institutet | I24: approved
A25: swei | B25: Landén M | C25: Swedish Bipolar Collection I (SWEBIC I) Illumina | D25: Sweden | E25: 1278 | F25: 3669 | G25: 1895 | H25: Karolinska Institutet | I25: approved
A26: top7 | B26: Andreassen O | C26: Thematically Organized Psychosis (TOP) | D26: Norway | E26: 416 | F26: 350 | G26: 380 | H26: Norwegian Scientific-Ethical Committee and the Norwegian Data Protection Agency | I26: approved
A27: top8 | B27: Andreassen O | C27: Thematically Organized Psychosis (TOP), addtional samples on new platform | D27: Norway | E27: 148 | F27: 291 | G27: 196 | H27: Norwegian Scientific-Ethical Committee and the Norwegian Data Protection Agency | I27: approved
A28: ucl2 | B28: Ophoff R | C28: Dutch-UCLA | D28: Holland | E28: 726 | F28: 693 | G28: 709 | H28: UCLA and local ethics committees at psychiatric hospitals and institutions throughout the Netherlands | I28: approved
A29: uclo | B29: McQuillin A | C29: University College London | D29: UK | E29: 427 | F29: 488 | G29: 455 | H29: Metropolitan Medical Research Ethics Committee | I29: approved
A30: ume4 | B30: Adolfsson R | C30: UMEA | D30: Sweden | E30: 565 | F30: 569 | G30: 566 | H30: Regional Ethical Review Board in Umeå | I30: approved
A31: usc2 | B31: Pato C | C31: ICCBD USC | D31: USA | E31: 1293 | F31: 1156 | G31: 1220 | H31: University of Southern California and site-specific Institutional Review Boards | I31: approved
A32: wtcc | B32: O'Donovan M, Di Florio A, Craddock N, Jones L, Jones I | C32: Wellcome Trust Case-Control Consortium (WTCCC) | D32: UK | E32: 1644 | F32: 1641 | G32: 1642 | H32: Cases: Institutional Review Boards in Aberdeen, Birmingham, Cardiff, London, Newcastle, Controls: South East multicentre research ethics committee (1958 birth cohort), 05/Q0106/74 (UK Blood Services Controls) | I32: approved
A33: butr* | B33: Kirov G | C33: Bulgarian trios* | D33: Bulgaria | E33: 236 | F33: 236 | G33: 236 | H33: Ethical Committees at several psychiatric hospitals in Bulgaria | I33: approved
A34: uktr* | B34: Kirov G | C34: UK trios* | D34: UK | E34: 130 | F34: 130 | G34: 130 | H34: Relevant research ethics committees at lithium clinics in Wales and the South and Midlands of England | I34: approved
A35: jea2 | B35: Li Q (Janssen); Esko T (shared controls) | C35: Janssen | D35: East. Europe | E35: 372 | F35: 628 | G35: 467 | H35: Cases: Clinical trials (IDs: NCT00253162, NCT00257075, NCT00076115, NCT00299715, NCT00309699, and NCT00309686) conducted by Janssen Research & Development, LLC, institutional review board or human subjects board at each site, Controls: Ethics Review Committee on Human Research of the University of Tartu | I35: approved
A36: kfo4 | B36: Schulze TG | C36: PsyCourse | D36: Germany | E36: 247 | F36: 288 | G36: 265 | H36: Ethics Committees of the University Medical Center Goettingen (UMG Goettingen, Bad Zwischenahn, Eschwege, Asklepios Specialized Hospital Goettingen, Hildesheim, Lüneburg, Liebenburg, Osnabrück, Rotenburg, Tiefenbrunn, Wilhemshaven), Medical Faculty of the LMU Munich (Munich and Augsburg), Medical Faculty of the RU Bochum (Bochum), Medical Association Bremen (Bremen Ost), Medical University of Graz (Graz), Ulm University (Günzburg) and Medical Association Westfalen‐Lippe and Medical Faculty University of Münster (Münster) (PsyCourse Consortium) | I36: approved
A37: tgco2 | B37: Kelsoe J | C37: BIGs/TGEN | D37: USA | E37: 1032 | F37: 499 | G37: 672 | H37: Indiana University, John Hopkins University, the NIMH Intramural Research Program, Washington University at St. Louis, University of Pennsylvania, University of Chicago, Rush Medical School, University of Iowa, University of California, San Diego, University of California, San Francisco, and University of Michigan | I37: approved
A38: bdtrs | B38: Baune, BT; Dannlowski, U | C38: Bipolar Depression Treatment Response Study | D38: Germany | E38: 218 | F38: 684 | G38: 330 | H38: University of Münster Human Ethics Committee, Münster, Germany | I38: approved
A39: dutch | B39: Ophoff R; Posthuma D, Lochner C, Franke B (shared controls) | D39: Holland | E39: 831 | F39: 953 | G39: 887 | H39: UCLA and local ethics committees at psychiatric hospitals and institutions throughout the Netherlands, Controls: institutional review board of Vrije Universiteit Amsterdam, Health Research Ethics Committee at Stellenbosch University, Centrale Commissie Mensgebonden Onderzoek: CMO Regio Arnhem Nijmegen; 2008/163; ABR: NL23894.091.08, medical ethical committee of the VU University Medical Center | I39: approved
A40: gawli | B40: Gawlik M | D40: Germany | E40: 268 | F40: 502 | G40: 349 | H40: Ethikkommisssion Universitätsklinik Würzburg | I40: approved
A41: germ1 | B41: Reif, A | C41: GUF-Bipolar | D41: Germany | E41: 219 | F41: 992 | G41: 358 | H41: Ethical committee of the Medical Faculty of the University of Würzburg | I41: approved
A42: gpcw1 | B42: Pato, C | C42: Genomic Psychiatry Consortium (GPC) | D42: USA | E42: 447 | F42: 2092 | G42: 736 | H42: University of Southern California and site-specific Institutional Review Boards | I42: approved
A43: neuc1 | B43: Fullerton J, Mitchell PB, Schofield PR, Green MJ, Weickert CS, Weickert TW, The Australian Schizophrenia Research Bank | C43: NeuRA-psych (including controls from The Australian Schizophrenia Research Bank) | D43: Australia | E43: 215 | F43: 750 | G43: 334 | H43: Cases & Controls: (BD Clinic Sample) Mood Disorder Unit, Prince of Wales Hospital in Sydney & UNSW Human Research Ethics Committee (HREC12623, HREC09394). (IGP sample) Human Research Ethics committees of UNSW (HC12384), St. Vincent's Hospital (HREC/10/SVH/9), and the South East Sydney and Illawarra Area Health Service (HREC 09/081). (BD high risk sample) UNSW Human Research Ethics Committee (HREC09097, HC14128, HC191009). Controls only: (CASSI sample) University of New South Wales (07/121 and 09/187), South Eastern Sydney and Illawarra Area Health Service (07-259) Human Research Ethics Committees and the Queen Elizabeth Hospital Ethics and Human Research Committee, Adelaide (2010188). (ASRB) Approval from each contributing site (HNE HREC 08/12/17/5.20, HREC/08/HNE/438, SSA/09/HNE/23). | I43: approved
A44: spsp3 | B44: Serretti, A ; Ribases M (shared controls) | D44: Spain | E44: 153 | F44: 2337 | G44: 287 | H44: Cases: Bipolar Disorders Unit, Hospital Clinic, University of Barcelona, Controls: Clinical Research Ethics Committee (CREC) of Hospital Universitari Vall d'Hebron | I44: approved
A45: swed1 | B45: Landén M; Hillert J, Alfredsson L (shared controls) | C45: GEMS and EIMS | D45: Sweden | E45: 2909 | F45: 2844 | G45: 2876 | H45: Karolinska Institutet | I45: approved
A46: ukwa1 | B46: Craddock N, Di Florio A, McQuillin A, McIntosh A; Breen G (shared controls) | D46: UK | E46: 2789 | F46: 2372 | G46: 2563 | H46: UK National Health Service (NHS) Research Ethics Committee; West Midlands Multi-Centre Research Ethics Committee | I46: approved
A47: usaw4 | B47: Perlis, R; Sklar, P; Smoller, J Goes, FS; Matthews C, Waldman I (shared controls) | D47: USA | E47: 2956 | F47: 2930 | G47: 2942 | H47: Cases: Johns Hopkins University, Partners HealthCare System institutional review board, Controls: University of Florida Human Subjects Review Board, Emory University and University of Arizona Human Subjects Review Boards | I47: approved
A48: usaw5 | B48: Perlis, R; Sklar, P; Smoller, J, Kelsoe J, Nievergelt C | D48: Canada/USA | E48: 1107 | F48: 1316 | G48: 1202 | H48: Partners Institutional Review Board, The University Hospitals Institutional Review Board (IRB), University Hospitals, Cleveland, OH, Human Subjects Office/Institutional Research Board, University of Iowa, Office of Research Compliance – Indiana University, Office of Human Subjects Research Institutional Review Boards, Johns Hopkins University, Mayo Clinic Institutional Research Board, Human Research Protection Program (HRPP), University of Michigan, University of Pennsylvania, Institutional Research Board, BSD IRB Committee C, University of Chicago, Human Research Protections Program, University of California, San Diego | I48: approved
A49: iPSYCH | B49: Borglum A | C49: iPSYCH | D49: Denmark | E49: 1758 | F49: 5937 | G49: 2712 | H49: Danish Data Protection Agency and the Scientific Ethics Committee in Denmark | I49: approved
A50: deCODE | B50: Stefansson H, Stefansson K | C50: deCODE | D50: Iceland | E50: 1972 | F50: 192602 | G50: 3904 | H50: National Bioethics Committee of Iceland and the Icelandic Data Protection Authority | I50: approved
A51: Estonian_Biobank | B51: Milani L | C51: Estonian Biobank | D51: Estonia | E51: 407 | F51: 17209 | G51: 795 | H51: Ethics Review Committee on Human Research of the University of Tartu | I51: approved
A52: HUNT | B52: Zwart JA | C52: Nord-Trøndelag Health Study | D52: Norway | E52: 905 | F52: 41914 | G52: 1771 | H52: Data Inspectorate of Norway, the Health Directorate and the Regional Committee for Medical and Health Research Ethics | I52: approved
A53: UK_Biobank | B53: Breen G | C53: UK Biobank | D53: UK | E53: 1454 | F53: 58113 | G53: 2837 | H53: North West Centre for Research Ethics Committee | I53: approved
A54: bmrus | B54: Rietschel M, Nöthen MM, Forstner AJ, Streit F, Babadjanova G | C54: BOMA-Russia | D54: Russia | E54: 522 | F54: 460 | G54: 489 | H54: Russian State Medical University, Moscow | I54: approved
A55: greek | B55: Ferentinos P, Dikeos D, Patrinos G | C55: ATLADIS (AThens Longitudinal Affective DIsorders Study) | D55: Greece | E55: 186 | F55: 87 | G55: 118 | H55: Research Ethics Committee of Attikon General Hospital | I55: approved
A56: norgs | B56: Andreassen O | C56: Thematically Organized Psychosis (TOP), addtional samples on new platform | D56: Norway | E56: 101 | F56: 315 | G56: 152 | H56: Norwegian Scientific-Ethical Committee and the Norwegian Data Protection Agency | I56: approved
A57: noroe | B57: Andreassen O | C57: Thematically Organized Psychosis (TOP), addtional samples on new platform | D57: Norway | E57: 313 | F57: 4367 | G57: 584 | H57: Norwegian Scientific-Ethical Committee and the Norwegian Data Protection Agency | I57: approved
A58: graza | B58: Reininghaus E, Bengesser S | C58: BIPGEN | D58: Austria | E58: 144 | F58: 66 | G58: 90 | H58: Medical University of Graz | I58: approved
A59: bmrom | B59: Grigoroiu-Serbanescu M, Nöthen MM | C59: BOMA-Romania II | D59: Romania | E59: 225 | F59: 121 | G59: 157 | H59: Alexandru Obregia Clinical Psychiatric Hospital, Bucharest, Romania | I59: approved
A60: TOTAL | E60: 41917 | F60: 371549 | G60: 50981
A62: * Trio datasets. Neff half = half of the effective sample size 2*Ncases*Ncontrols/(Ncases + Ncontrols)
A63: ^Pink color denotes that these cohorts were used for in-sample linkage disequilibrium calculations.

Sheet Table S2
A1: Supplementary Table 2. Genome-wide significant loci for bipolar disorder showing the most significant SNP from each genomic region (adapted from Mullins et al., Nat Genet, 2021)
A2: SNP | B2: CHR | C2: BP | D2: P | E2: OR (A1 allele) | F2: SE | G2: A1/A2 | H2: A1 freq in cases | I2: A1 freq in controls | J2: INFO | K2: N cases | L2: N controls | M2: range.left.r2=0.1 | N2: range.right.r2=0.1 | O2: range.size.r2=0.1 | P2: range.left (3Mb window) | Q2: range.right (3Mb window) | R2: Genes | S2: N.genes.6.50kb | T2: Locus name
A3: rs2126180 | B3: 1 | C3: 61105668 | D3: 1.621e-09 | E3: 0.94497 | F3: 0.0094 | G3: G/A | H3: 0.536 | I3: 0.543 | J3: 0.993 | K3: 41917 | L3: 371549 | M3: 60890668 | N3: 61129568 | O3: =N3-M3 -> 238900 | P3: 61000001 | Q3: 64000001 | R3: LINC01748,LOC101926964 | S3: 2 | T3: LINC01748
A4: rs10737496 | B4: 1 | C4: 163745389 | D4: 7.172e-09 | E4: 1.0557 | F4: 0.0094 | G4: C/T | H4: 0.467 | I4: 0.444 | J4: 0.992 | K4: 41917 | L4: 371549 | M4: 163581389 | N4: 163813589 | O4: 232200 | P4: 163000001 | Q4: 166000001 | R4: - | S4: 0 | T4: NUF2
A5: rs4619651 | B5: 2 | C5: 97416153 | D5: 4.776e-11 | E5: 1.06833 | F5: 0.0101 | G5: G/A | H5: 0.691 | I5: 0.67 | J5: 0.994 | K5: 41917 | L5: 371549 | M5: 96396153 | N5: 98357153 | O5: 1961000 | P5: 97000001 | Q5: 100000001 | R5: KANSL3,FER1L5,LMAN2L,CNNM4,MIR3127,CNNM3-DT,CNNM3,ANKRD23 | S5: 8 | T5: LMAN2L
A6: rs17183814 | B6: 2 | C6: 166152389 | D6: 2.678e-08 | E6: 1.10838 | F6: 0.0185 | G6: G/A | H6: 0.933 | I6: 0.924 | J6: 0.978 | K6: 41587 | L6: 371396 | M6: 166152389 | N6: 166337389 | O6: 185000 | P6: 166000001 | Q6: 169000001 | R6: SCN2A,CSRNP3 | S6: 2 | T6: SCN2A
A7: rs13417268 | B7: 2 | C7: 169481837 | D7: 2.054e-08 | E7: 1.06375 | F7: 0.011 | G7: C/G | H7: 0.768 | I7: 0.758 | J7: 0.99 | K7: 41917 | L7: 371549 | M7: 169277837 | N7: 169514837 | O7: 237000 | P7: 169000001 | Q7: 172000001 | R7: CERS6,MIR4774 | S7: 2 | T7: CERS6
A8: rs2011302 | B8: 2 | C8: 193738336 | D8: 4.254e-08 | E8: 0.94847 | F8: 0.0097 | G8: T/A | H8: 0.621 | I8: 0.623 | J8: 0.99 | K8: 41917 | L8: 371549 | M8: 193377336 | N8: 194063336 | O8: 686000 | P8: 193000001 | Q8: 196000001 | R8: - | S8: 0 | T8: PCGEM1
A9: rs2719164 | B9: 2 | C9: 194437889 | D9: 4.847e-08 | E9: 1.05306 | F9: 0.0095 | G9: A/G | H9: 0.594 | I9: 0.564 | J9: 0.996 | K9: 41917 | L9: 371549 | M9: 194017889 | N9: 194749889 | O9: 732000 | P9: 194000001 | Q9: 197000001 | R9: - | S9: 0 | T9: intergenic
A10: rs9834970 | B10: 3 | C10: 36856030 | D10: 6.634e-19 | E10: 0.92035 | F10: 0.0093 | G10: T/C | H10: 0.487 | I10: 0.519 | J10: 0.992 | K10: 41917 | L10: 371549 | M10: 36834130 | N10: 37269030 | O10: 434900 | P10: 36000001 | Q10: 39000001 | R10: LINC02033,TRANK1 | S10: 2 | T10: TRANK1
A11: rs2336147 | B11: 3 | C11: 52626443 | D11: 3.615e-13 | E11: 1.07004 | F11: 0.0093 | G11: T/C | H11: 0.504 | I11: 0.498 | J11: 0.999 | K11: 41917 | L11: 371549 | M11: 52214443 | N11: 53175443 | O11: 961000 | P11: 52000001 | Q11: 55000001 | R11: NISCH,STAB1,NT5DC2,SMIM4,PBRM1,GNL3,SNORD136,SNORD19,SNORD19B,SNORD19C,SNORD69,GLT8D1,SPCS1,NEK4,ITIH1,ITIH3,ITIH4,ITIH4-AS1,MUSTN1,TMEM110-MUSTN1,STIMATE,MIR8064 | S11: 22 | T11: ITIH1
A12: rs115694474 | B12: 3 | C12: 70488788 | D12: 2.345e-08 | E12: 1.06844 | F12: 0.0119 | G12: T/A | H12: 0.812 | I12: 0.799 | J12: 0.993 | K12: 41917 | L12: 371549 | M12: 70450188 | N12: 70614788 | O12: 164600 | P12: 70000001 | Q12: 73000001 | R12: - | S12: 0 | T12: MDFIC2
A13: rs696366 | B13: 3 | C13: 107757060 | D13: 4.464e-08 | E13: 1.05295 | F13: 0.0094 | G13: C/A | H13: 0.558 | I13: 0.55 | J13: 0.986 | K13: 41917 | L13: 371549 | M13: 107753300 | N13: 107945060 | O13: 191760 | P13: 107000001 | Q13: 110000001 | R13: CD47,LINC01215,IFT57 | S13: 3 | T13: CD47
A14: rs112481526 | B14: 4 | C14: 123076007 | D14: 1.856e-09 | E14: 0.93885 | F14: 0.0105 | G14: A/G | H14: 0.72 | I14: 0.744 | J14: 0.984 | K14: 41917 | L14: 371549 | M14: 123000007 | N14: 123559007 | O14: 559000 | P14: 123000001 | Q14: 126000001 | R14: KIAA1109,ADAD1,IL2,IL21,IL21-AS1 | S14: 5 | T14: KIAA1109
A15: rs28565152 | B15: 5 | C15: 7542911 | D15: 1.963e-09 | E15: 0.9351 | F15: 0.0112 | G15: G/A | H15: 0.743 | I15: 0.762 | J15: 0.982 | K15: 40159 | L15: 365612 | M15: 7493211 | N15: 7614011 | O15: 120800 | P15: 7000001 | Q15: 10000001 | R15: ADCY2 | S15: 1 | T15: ADCY2
A16: rs6865469 | B16: 5 | C16: 78849505 | D16: 1.65e-08 | E16: 0.94346 | F16: 0.0103 | G16: G/T | H16: 0.711 | I16: 0.726 | J16: 0.996 | K16: 41917 | L16: 371549 | M16: 78800105 | N16: 78976505 | O16: 176400 | P16: 78000001 | Q16: 81000001 | R16: HOMER1 | S16: 1 | T16: HOMER1
A17: rs6887473 | B17: 5 | C17: 80961069 | D17: 8.814e-09 | E17: 1.06216 | F17: 0.0105 | G17: G/A | H17: 0.727 | I17: 0.739 | J17: 0.992 | K17: 41917 | L17: 371549 | M17: 80727069 | N17: 80990869 | O17: 263800 | P17: 80000001 | Q17: 83000001 | R17: SSBP2 | S17: 1 | T17: SSBP2
A18: rs10043984 | B18: 5 | C18: 137712121 | D18: 3.709e-08 | E18: 0.94242 | F18: 0.0108 | G18: C/T | H18: 0.741 | I18: 0.764 | J18: 0.985 | K18: 41917 | L18: 371549 | M18: 137673121 | N18: 137837121 | O18: 164000 | P18: 137000001 | Q18: 140000001 | R18: CDC25C,LOC100128966,FAM53C,KDM3B,REEP2 | S18: 5 | T18: KDM3B
A19: rs10866641 | B19: 5 | C19: 169289206 | D19: 2.79e-11 | E19: 1.0646 | F19: 0.0094 | G19: T/C | H19: 0.578 | I19: 0.575 | J19: 1 | K19: 41917 | L19: 371549 | M19: 169172206 | N19: 169348806 | O19: 176600 | P19: 169000001 | Q19: 172000001 | R19: DOCK2,INSYN2B | S19: 2 | T19: DOCK2
A20: rs13195402 | B20: 6 | C20: 26463575 | D20: 5.751e-15 | E20: 1.14614 | F20: 0.0175 | G20: G/T | H20: 0.923 | I20: 0.919 | J20: 0.985 | K20: 41362 | L20: 371275 | M20: 25183575 | N20: 29463575 | O20: 4280000 | P20: 26000001 | Q20: 29000001 | R20: SCGN,HIST1H2AA,HIST1H2BA,HIST1H2APS1,SLC17A4,SLC17A1,SLC17A3,SLC17A2,TRIM38,HIST1H1A,HIST1H3A,HIST1H4A,HIST1H4B,HIST1H3B,HIST1H2AB,HIST1H2BB,HIST1H3C,HIST1H1C,LOC108783645,HFE,HIST1H4C,HIST1H1T,HIST1H2BC,HIST1H2AC,HIST1H1E,HIST1H2BD,HIST1H2BE,HIST1H4D,HIST1H3D,HIST1H2AD,HIST1H2BF,HIST1H4E,HIST1H2BG,HIST1H2AE,HIST1H3E,HIST1H1D,HIST1H4F,HIST1H4G,HIST1H3F,HIST1H2BH,HIST1H3G,HIST1H2BI,HIST1H4H,BTN3A2,BTN2A2,BTN3A1,BTN2A3P,BTN3A3,BTN2A1,LOC285819,BTN1A1,HCG11,HMGN4,LOC105374988,ABT1,ZNF322,GUSBP2,LINC00240,LOC100270746,HIST1H2BJ,HIST1H2AG,HIST1H2BK,HIST1H4I,HIST1H2AH,MIR3143,PRSS16,POM121L2,VN1R10P,ZNF204P,ZNF391,ZNF184,LINC01012,LOC100131289,HIST1H2BL,HIST1H2AI,HIST1H3H,HIST1H2AJ,HIST1H2BM,HIST1H4J,HIST1H4K,HIST1H2AK,HIST1H2BN,HIST1H2AL,HIST1H1B,HIST1H3I,HIST1H4L,HIST1H3J,HIST1H2AM,HIST1H2BO,OR2B2,OR2B6,OR1F12,ZNF165,ZSCAN12P1,ZSCAN16-AS1,ZSCAN16,ZKSCAN8,ZNF192P1,TOB2P1,ZSCAN9,ZKSCAN4,NKAPL,ZSCAN26,PGBD1,ZSCAN31,ZKSCAN3,ZSCAN12,ZSCAN23,GPX6,GPX5,ZBED9,LINC00533,LINC01623,HCG14,TRIM27,LINC01556,HCG15,ZNF311,LOC100129636,OR2W1,OR2B3,OR2J1,OR2J3,OR2J2,LOC101929006,OR14J1,OR5V1,OR12D3,OR12D2,OR12D1,OR11A1,OR10C1,OR2H1,MAS1L,LINC01015 | S20: 135 | T20: MHC
A21: rs1487445 | B21: 6 | C21: 98565211 | D21: 1.484e-15 | E21: 0.92849 | F21: 0.0093 | G21: C/T | H21: 0.502 | I21: 0.513 | J21: 1 | K21: 41917 | L21: 371549 | M21: 98224211 | N21: 98781211 | O21: 557000 | P21: 98000001 | Q21: 101000001 | R21: - | S21: 0 | T21: POU3F2
A22: rs4331993 | B22: 6 | C22: 152793572 | D22: 1.979e-08 | E22: 0.94677 | F22: 0.0097 | G22: T/A | H22: 0.634 | I22: 0.618 | J22: 1 | K22: 41510 | L22: 354340 | M22: 152707072 | N22: 152835772 | O22: 128700 | P22: 152000001 | Q22: 155000001 | R22: SYNE1,SYNE1-AS1 | S22: 2 | T22: SYNE1
A23: rs10455979 | B23: 6 | C23: 166995260 | D23: 4.218e-09 | E23: 0.94592 | F23: 0.0095 | G23: C/G | H23: 0.512 | I23: 0.5 | J23: 0.988 | K23: 41510 | L23: 354340 | M23: 166969960 | N23: 167023260 | O23: 53300 | P23: 166000001 | Q23: 169000001 | R23: RPS6KA2 | S23: 1 | T23: RPS6KA2
A24: rs12668848 | B24: 7 | C24: 2020995 | D24: 1.902e-09 | E24: 1.05866 | F24: 0.0095 | G24: G/A | H24: 0.595 | I24: 0.575 | J24: 0.996 | K24: 41917 | L24: 371549 | M24: 1861995 | N24: 2344995 | O24: 483000 | P24: 2000001 | Q24: 5000001 | R24: MAD1L1,MIR4655,SNORA114 | S24: 3 | T24: MAD1L1
A25: rs113779084 | B25: 7 | C25: 11871787 | D25: 1.423e-13 | E25: 0.92728 | F25: 0.0102 | G25: G/A | H25: 0.686 | I25: 0.701 | J25: 0.976 | K25: 41917 | L25: 371549 | M25: 11854987 | N25: 12023787 | O25: 168800 | P25: 11000001 | Q25: 14000001 | R25: THSD7A | S25: 1 | T25: THSD7A
A26: rs6954854 | B26: 7 | C26: 21492589 | D26: 5.936e-10 | E26: 1.06003 | F26: 0.0094 | G26: G/A | H26: 0.436 | I26: 0.425 | J26: 0.996 | K26: 41917 | L26: 371549 | M26: 21451289 | N26: 21556989 | O26: 105700 | P26: 21000001 | Q26: 24000001 | R26: SP4,MIR1183,DNAH11 | S26: 3 | T26: SP4
A27: rs12672003 | B27: 7 | C27: 24647222 | D27: 2.718e-09 | E27: 0.91211 | F27: 0.0155 | G27: A/G | H27: 0.883 | I27: 0.887 | J27: 0.996 | K27: 39352 | L27: 161651 | M27: 24499222 | N27: 24845222 | O27: 346000 | P27: 24000001 | Q27: 27000001 | R27: MPP6,GSDME,OSBPL3 | S27: 3 | T27: MPP6
A28: rs11764361 | B28: 7 | C28: 105043229 | D28: 3.471e-09 | E28: 1.06343 | F28: 0.0104 | G28: A/G | H28: 0.671 | I28: 0.668 | J28: 0.905 | K28: 41917 | L28: 371549 | M28: 104455229 | N28: 105048159 | O28: 592930 | P28: 105000001 | Q28: 108000001 | R28: SRPK2,PUS7 | S28: 2 | T28: SRPK2
A29: rs6946056 | B29: 7 | C29: 131870597 | D29: 3.655e-08 | E29: 0.94819 | F29: 0.0097 | G29: A/C | H29: 0.382 | I29: 0.377 | J29: 0.982 | K29: 41917 | L29: 371549 | M29: 131859097 | N29: 131929697 | O29: 70600 | P29: 131000001 | Q29: 134000001 | R29: PLXNA4,LOC101928807 | S29: 2 | T29: PLXNA4
A30: rs10255167 | B30: 7 | C30: 140676153 | D30: 1.599e-08 | E30: 0.93576 | F30: 0.0118 | G30: G/A | H30: 0.215 | I30: 0.222 | J30: 0.993 | K30: 39945 | L30: 178947 | M30: 140244153 | N30: 140807153 | O30: 563000 | P30: 140000001 | Q30: 143000001 | R30: BRAF,MRPS33,TMEM178B | S30: 3 | T30: MRPS33
A31: rs62489493 | B31: 8 | C31: 9763581 | D31: 2.642e-11 | E31: 0.91421 | F31: 0.0135 | G31: C/G | H31: 0.856 | I31: 0.872 | J31: 0.986 | K31: 41917 | L31: 371549 | M31: 8313581 | N31: 11453581 | O31: 3140000 | P31: 9000001 | Q31: 12000001 | R31: TNKS,LINC00599,MIR124-1 | S31: 3 | T31: miR124-1
A32: rs3088186 | B32: 8 | C32: 10226355 | D32: 2.084e-08 | E32: 0.94488 | F32: 0.0101 | G32: C/T | H32: 0.686 | I32: 0.713 | J32: 0.994 | K32: 41917 | L32: 371549 | M32: 8096355 | N32: 11826355 | O32: 3730000 | P32: 10000001 | Q32: 13000001 | R32: MSRA | S32: 1 | T32: MSRA
A33: rs2953928 | B33: 8 | C33: 34152492 | D33: 6.249e-09 | E33: 0.89039 | F33: 0.02 | G33: G/A | H33: 0.941 | I33: 0.933 | J33: 1 | K33: 41362 | L33: 371275 | M33: 33405492 | N33: 35162492 | O33: 1757000 | P33: 34000001 | Q33: 37000001 | R33: - | S33: 0 | T33: RP1-84O15.2(lincRNA)
A34: rs6992333 | B34: 8 | C34: 144993377 | D34: 1.621e-09 | E34: 0.94158 | F34: 0.01 | G34: A/G | H34: 0.568 | I34: 0.59 | J34: 0.967 | K34: 39945 | L34: 178947 | M34: 144973177 | N34: 145099377 | O34: 126200 | P34: 144000001 | Q34: 147000001 | R34: EPPK1,PLEC,MIR661,PARP10,GRINA,SPATC1,OPLAH,MIR6846,EXOSC4,MIR6847 | S34: 10 | T34: PLEC
A35: rs10973201 | B35: 9 | C35: 37090538 | D35: 2.449e-08 | E35: 0.90846 | F35: 0.0172 | G35: T/C | H35: 0.882 | I35: 0.89 | J35: 0.799 | K35: 39538 | L35: 161738 | M35: 37003738 | N35: 37411538 | O35: 407800 | P35: 37000001 | Q35: 40000001 | R35: PAX5,EBLN3P,ZCCHC7,GRHPR | S35: 4 | T35: ZCCH7
A36: rs62581014 | B36: 9 | C36: 141066490 | D36: 2.774e-08 | E36: 0.93688 | F36: 0.0117 | G36: C/T | H36: 0.62 | I36: 0.634 | J36: 0.694 | K36: 39543 | L36: 312463 | M36: 140992090 | N36: 141076890 | O36: 84800 | P36: 141000001 | Q36: 144000001 | R36: CACNA1B,TUBBP5,LOC101928932 | S36: 3 | T36: TUBBP5
A37: rs1998820 | B37: 10 | C37: 18751103 | D37: 4.1e-08 | E37: 1.0873 | F37: 0.0152 | G37: T/A | H37: 0.899 | I37: 0.886 | J37: 0.995 | K37: 41917 | L37: 371549 | M37: 18602103 | N37: 18782803 | O37: 180700 | P37: 18000001 | Q37: 21000001 | R37: CACNB2 | S37: 1 | T37: CACNB2
A38: rs10994415 | B38: 10 | C38: 62322034 | D38: 1.14e-11 | E38: 0.88861 | F38: 0.0174 | G38: T/C | H38: 0.912 | I38: 0.918 | J38: 0.999 | K38: 39759 | L38: 178860 | M38: 62048034 | N38: 62384334 | O38: 336300 | P38: 62000001 | Q38: 65000001 | R38: ANK3 | S38: 1 | T38: ANK3
A39: rs10761661 | B39: 10 | C39: 64525135 | D39: 4.645e-08 | E39: 0.95009 | F39: 0.0094 | G39: C/T | H39: 0.54 | I39: 0.528 | J39: 0.995 | K39: 41917 | L39: 371549 | M39: 64387135 | N39: 64630135 | O39: 243000 | P39: 64000001 | Q39: 67000001 | R39: ZNF365,ADO,EGR2 | S39: 3 | T39: ADO
A40: rs2273738 | B40: 10 | C40: 111648659 | D40: 1.627e-11 | E40: 0.91238 | F40: 0.0136 | G40: C/T | H40: 0.847 | I40: 0.865 | J40: 0.936 | K40: 41917 | L40: 371549 | M40: 111530659 | N40: 112015659 | O40: 485000 | P40: 111000001 | Q40: 114000001 | R40: XPNPEP1,ADD3-AS1,ADD3 | S40: 3 | T40: ADD3
A41: rs174592 | B41: 11 | C41: 61618608 | D41: 9.924e-14 | E41: 0.93053 | F41: 0.0097 | G41: A/G | H41: 0.619 | I41: 0.605 | J41: 0.987 | K41: 41917 | L41: 371549 | M41: 61521308 | N41: 61658808 | O41: 137500 | P41: 61000001 | Q41: 64000001 | R41: DAGLA,MYRF,DKFZP434K028,TMEM258,MIR611,FEN1,FADS1,MIR1908,FADS2,FADS3,MIR6746,RAB3IL1 | S41: 12 | T41: FADS2
A42: rs4672 | B42: 11 | C42: 64009879 | D42: 3.42e-09 | E42: 0.9033 | F42: 0.0172 | G42: G/A | H42: 0.916 | I42: 0.917 | J42: 0.98 | K42: 40997 | L42: 370576 | M42: 63810879 | N42: 64176879 | O42: 366000 | P42: 64000001 | Q42: 67000001 | R42: MACROD1,STIP1,FERMT3,TRPT1,NUDT22,DNAJC4,VEGFB,FKBP2,PPP1R14B,LOC105369340,PLCB3,BAD,GPR137,KCNK4,KCNK4-TEX40 | S42: 15 | T42: FKBP2
A43: rs475805 | B43: 11 | C43: 65848738 | D43: 1.991e-09 | E43: 0.9352 | F43: 0.0112 | G43: G/A | H43: 0.228 | I43: 0.233 | J43: 0.994 | K43: 41510 | L43: 354340 | M43: 65785738 | N43: 66060738 | O43: 275000 | P43: 65000001 | Q43: 68000001 | R43: EIF1AD,BANF1,CST6,CATSPER1,GAL3ST3,SF3B2,SNORD13F,PACS1,KLC2,RAB1B,CNIH2,YIF1A,TMEM151A,CD248 | S43: 14 | T43: PACS1
A44: rs678397 | B44: 11 | C44: 66324583 | D44: 5.462e-09 | E44: 1.05601 | F44: 0.0093 | G44: T/C | H44: 0.467 | I44: 0.457 | J44: 0.998 | K44: 41917 | L44: 371549 | M44: 66064583 | N44: 66832583 | O44: 768000 | P44: 66000001 | Q44: 69000001 | R44: NPAS4,MRPL11,PELI3,LOC101928069,DPP3,BBS1,ZDHHC24,ACTN3,CTSF,CCDC87,CCS,RBM14,RBM14-RBM4,RBM4,RBM4B,SPTBN2,C11orf80 | S44: 17 | T44: PC
A45: rs12575685 | B45: 11 | C45: 70517927 | D45: 1.243e-10 | E45: 0.93688 | F45: 0.0101 | G45: G/A | H45: 0.674 | I45: 0.673 | J45: 0.964 | K45: 41917 | L45: 371549 | M45: 70492827 | N45: 70630927 | O45: 138100 | P45: 70000001 | Q45: 73000001 | R45: SHANK2,SHANK2-AS1 | S45: 2 | T45: SHANK2
A46: rs12289486 | B46: 11 | C46: 79092527 | D46: 3.297e-08 | E46: 0.92072 | F46: 0.0149 | G46: C/T | H46: 0.888 | I46: 0.885 | J46: 0.996 | K46: 41917 | L46: 371549 | M46: 79057127 | N46: 79191427 | O46: 134300 | P46: 79000001 | Q46: 82000001 | R46: TENM4,MIR708,MIR5579 | S46: 3 | T46: ODZ4
A47: rs11062170 | B47: 12 | C47: 2348844 | D47: 1.869e-15 | E47: 0.92506 | F47: 0.0098 | G47: G/C | H47: 0.652 | I47: 0.667 | J47: 1 | K47: 41917 | L47: 371549 | M47: 2274044 | N47: 2440444 | O47: 166400 | P47: 2000001 | Q47: 5000001 | R47: CACNA1C,CACNA1C-AS4,CACNA1C-IT3 | S47: 3 | T47: CACNA1C
A48: rs35306827 | B48: 13 | C48: 113869045 | D48: 3.555e-09 | E48: 1.06812 | F48: 0.0112 | G48: G/A | H48: 0.773 | I48: 0.775 | J48: 0.986 | K48: 41917 | L48: 371549 | M48: 113800645 | N48: 113989045 | O48: 188400 | P48: 113000001 | Q48: 116000001 | R48: F7,F10,F10-AS1,PROZ,PCID2,CUL4A,MIR8075,LAMP1 | S48: 8 | T48: CUL4A
A49: rs2693698 | B49: 14 | C49: 99719219 | D49: 1.961e-08 | E49: 0.94838 | F49: 0.0094 | G49: A/G | H49: 0.44 | I49: 0.449 | J49: 0.985 | K49: 41917 | L49: 371549 | M49: 99667219 | N49: 99733919 | O49: 66700 | P49: 99000001 | Q49: 102000001 | R49: BCL11B | S49: 1 | T49: BCL11B
A50: rs35958438 | B50: 15 | C50: 38973793 | D50: 3.83e-08 | E50: 1.06631 | F50: 0.0117 | G50: G/A | H50: 0.782 | I50: 0.772 | J50: 0.992 | K50: 39945 | L50: 178947 | M50: 38927093 | N50: 39007193 | O50: 80100 | P50: 38000001 | Q50: 41000001 | R50: C15orf53 | S50: 1 | T50: C15orf53
A51: rs4447398 | B51: 15 | C51: 42904904 | D51: 2.613e-09 | E51: 1.08567 | F51: 0.0138 | G51: A/C | H51: 0.137 | I51: 0.131 | J51: 0.984 | K51: 41917 | L51: 371549 | M51: 42439904 | N51: 43377904 | O51: 938000 | P51: 42000001 | Q51: 45000001 | R51: SNAP23,LRRC57,HAUS2,STARD9 | S51: 4 | T51: STARD9
A52: rs62011709 | B52: 15 | C52: 83531774 | D52: 1.433e-08 | E52: 1.06418 | F52: 0.011 | G52: T/A | H52: 0.771 | I52: 0.747 | J52: 0.998 | K52: 41917 | L52: 371549 | M52: 82511774 | N52: 84027774 | O52: 1516000 | P52: 83000001 | Q52: 86000001 | R52: FSD2,WHAMM,HOMER2,RAMAC,C15orf40,BTBD1,MIR4515,TM6SF1,HDGFL3,BNC1 | S52: 10 | T52: HOMER2
A53: rs748455 | B53: 15 | C53: 85149575 | D53: 5.011e-11 | E53: 1.06983 | F53: 0.0103 | G53: T/C | H53: 0.714 | I53: 0.719 | J53: 0.997 | K53: 41917 | L53: 371549 | M53: 84641575 | N53: 85392575 | O53: 751000 | P53: 85000001 | Q53: 88000001 | R53: ADAMTSL3,EFL1P1,UBE2Q2L,LOC440300,GOLGA2P7,LOC642423,GOLGA6L4,LOC103171574,LOC102724034,DNM1P41,GOLGA6L5P,UBE2Q2P1,LINC00933,ZSCAN2,SCAND2P,WDR73,NMB,SEC11A,ZNF592,ALPK3,SLC28A1 | S53: 21 | T53: ZNF592
A54: rs4702 | B54: 15 | C54: 91426560 | D54: 3.518e-09 | E54: 1.05897 | F54: 0.0097 | G54: G/A | H54: 0.457 | I54: 0.446 | J54: 0.951 | K54: 40997 | L54: 370576 | M54: 91416560 | N54: 91431520 | O54: 14960 | P54: 91000001 | Q54: 94000001 | R54: FURIN,FES,MAN2A2,UNC45A,HDDC3 | S54: 5 | T54: FURIN
A55: rs28455634 | B55: 16 | C55: 9230816 | D55: 2.626e-10 | E55: 1.06481 | F55: 0.0099 | G55: G/A | H55: 0.626 | I55: 0.62 | J55: 0.937 | K55: 41917 | L55: 371549 | M55: 9130816 | N55: 9238386 | O55: 107570 | P55: 9000001 | Q55: 12000001 | R55: C16orf72 | S55: 1 | T55: C16orf72
A56: rs7199910 | B56: 16 | C56: 9926348 | D56: 1.663e-08 | E56: 0.94582 | F56: 0.0099 | G56: T/G | H56: 0.65 | I56: 0.688 | J56: 0.99 | K56: 41917 | L56: 371549 | M56: 9800348 | N56: 10047348 | O56: 247000 | P56: 9000001 | Q56: 12000001 | R56: GRIN2A | S56: 1 | T56: GRIN2A
A57: rs12932628 | B57: 16 | C57: 89632725 | D57: 6.711e-09 | E57: 0.94459 | F57: 0.0098 | G57: G/T | H57: 0.523 | I57: 0.513 | J57: 0.925 | K57: 41510 | L57: 354340 | M57: 89385725 | N57: 89656625 | O57: 270900 | P57: 89000001 | Q57: 92000001 | R57: SPG7,RPL13,SNORD68,CPNE7,DPEP1 | S57: 5 | T57: RPL13
A58: rs4790841 | B58: 17 | C58: 1835482 | D58: 3.141e-08 | E58: 0.92969 | F58: 0.0132 | G58: C/T | H58: 0.834 | I58: 0.849 | J58: 0.937 | K58: 40997 | L58: 370576 | M58: 1816782 | N58: 1866882 | O58: 50100 | P58: 1000001 | Q58: 4000001 | R58: RPA1,RTN4RL1 | S58: 2 | T58: RTN4RL1
A59: rs11870683 | B59: 17 | C59: 38129841 | D59: 2.786e-08 | E59: 1.05897 | F59: 0.0103 | G59: T/A | H59: 0.657 | I59: 0.65 | J59: 0.975 | K59: 39945 | L59: 178947 | M59: 37830841 | N59: 38218841 | O59: 388000 | P59: 38000001 | Q59: 41000001 | R59: ORMDL3,LRRC3C,GSDMA,PSMD3,CSF3,MED24,MIR6884,SNORD124,THRA,NR1D1 | S59: 10 | T59: ERBB2
A60: rs61554907 | B60: 17 | C60: 38220432 | D60: 1.636e-08 | E60: 0.91686 | F60: 0.0154 | G60: G/T | H60: 0.887 | I60: 0.876 | J60: 0.944 | K60: 40997 | L60: 370576 | M60: 37949432 | N60: 38481432 | O60: 532000 | P60: 38000001 | Q60: 41000001 | R60: CSF3,MED24,MIR6884,SNORD124,THRA,NR1D1 | S60: 6 | T60: ERBB2
A61: rs228768 | B61: 17 | C61: 42191893 | D61: 2.827e-10 | E61: 1.06652 | F61: 0.0102 | G61: G/T | H61: 0.322 | I61: 0.294 | J61: 0.976 | K61: 41917 | L61: 371549 | M61: 42090893 | N61: 42333893 | O61: 243000 | P61: 42000001 | Q61: 45000001 | R61: LSM12,G6PC3,HDAC5,LOC105371789,C17orf53,ASB16,ASB16-AS1,TMUB2,ATXN7L3,UBTF,MIR6782 | S61: 11 | T61: HDAC5
A62: rs67712855 | B62: 20 | C62: 43682551 | D62: 4.221e-11 | E62: 1.07004 | F62: 0.0103 | G62: T/G | H62: 0.705 | I62: 0.687 | J62: 0.997 | K62: 41510 | L62: 354340 | M62: 43592251 | N62: 43772251 | O62: 180000 | P62: 43000001 | Q62: 46000001 | R62: PABPC1L,TOMM34,STK4-AS1,STK4,KCNS1,WFDC5,WFDC12 | S62: 7 | T62: WFDC12
A63: rs6032110 | B63: 20 | C63: 43944323 | D63: 1.01e-09 | E63: 1.05908 | F63: 0.0094 | G63: A/G | H63: 0.537 | I63: 0.512 | J63: 0.985 | K63: 41917 | L63: 371549 | M63: 43750323 | N63: 43970423 | O63: 220100 | P63: 43000001 | Q63: 46000001 | R63: SLPI,MATN4,RBPJL,SDC4,SYS1,SYS1-DBNDD2 | S63: 6 | T63: STK4
A64: rs237460 | B64: 20 | C64: 48033127 | D64: 4.253e-09 | E64: 0.9462 | F64: 0.0094 | G64: C/T | H64: 0.563 | I64: 0.588 | J64: 1 | K64: 41917 | L64: 371549 | M64: 48007227 | N64: 48130327 | O64: 123100 | P64: 48000001 | Q64: 51000001 | R64: KCNB1 | S64: 1 | T64: KCNB1
A65: rs13044225 | B65: 20 | C65: 60865815 | D65: 8.498e-09 | E65: 0.94677 | F65: 0.0095 | G65: A/G | H65: 0.528 | I65: 0.56 | J65: 0.985 | K65: 41510 | L65: 354340 | M65: 60781515 | N65: 60886615 | O65: 105100 | P65: 60000001 | Q65: 63000001 | R65: SS18L1,MTG2,HRH3,OSBPL2,ADRM1,LAMA5,MIR4758,LAMA5-AS1 | S65: 8 | T65: OSBPL2
A66: rs5758064 | B66: 22 | C66: 41153879 | D66: 2.011e-08 | E66: 1.0538 | F66: 0.0093 | G66: T/C | H66: 0.524 | I66: 0.523 | J66: 0.996 | K66: 41917 | L66: 371549 | M66: 40876879 | N66: 41587879 | O66: 711000 | P66: 41000001 | Q66: 44000001 | R66: MRTFA,MCHR1,SLC25A17,MIR4766,ST13,XPNPEP3,DNAJB7,RBX1 | S66: 8 | T66: SLC25A17
A68: SNP, single nucleotide polymorphism; CHR, chromosome; BP, GRCh37 base-pair position; P, two-sided uncorrected p-value from an inverse variance-weighted fixed effects model meta-analysis; OR, odds ratio; SE, standard error; freq, frequency; INFO, imputation information score (average weighted by effective sample size per cohort);
A69: range.left.r2=0.1, range.right.r2=0.1, left and right margins and span of region defined based on linkage disequilibrium r2 0.1;
A70: range.left(3Mb window), range.right(3Mb window), left and right margins of predefined 3Mb-long regions from Weissbrod et al. 2020 (PMID: 33199916) that include each locus;
A71: Genes, list of genes in the region based on linkage disequilibrium r2 0.6 (±50 kb); N.genes.6.50kb, number of genes in the region based on linkage disequilibrium r2 0.6 (±50 kb);
A72: Locus name, assigned locus name of each one of the 64 loci to be fine-mapped based as published in Mullins et al. 2021 (PMID: 34002096);

Sheet Table S3
A1: Supplementary Table S3. Results of conditional analysis in each BD risk locus using GCTA-COJO and GWAS summary statistics.
A2: Index SNP | B2: CHR | C2: Index SNP BP | D2: Index SNP P value | E2: BP left boundary | F2: BP right boundary | G2: N signals | H2: 2nd SNP BP | I2: 2nd SNP | J2: 2nd SNP P value | K2: 3rd SNP BP | L2: 3rd SNP | M2: 3rd SNP P value
A3: rs2126180 | B3: 1 | C3: 61105668 | D3: 1.621e-09 | E3: 60890668 | F3: 61129568 | G3: 1 | H3: 60949956 | I3: rs72673445 | J3: 0.00452516
A4: rs10737496 | B4: 1 | C4: 163745389 | D4: 7.172e-09 | E4: 163581389 | F4: 163813589 | G4: 1 | H4: 163607670 | I4: rs191191494 | J4: 0.00801642
A5: rs4619651 | B5: 2 | C5: 97416153 | D5: 4.776e-11 | E5: 96396153 | F5: 98357153 | G5: 1 | H5: 96914636 | I5: rs11551400 | J5: 7.018e-06
A6: rs17183814 | B6: 2 | C6: 166152389 | D6: 2.678e-08 | E6: 166152389 | F6: 166337389 | G6: 1 | H6: 166334559 | I6: rs376286377 | J6: 0.0352826
A7: rs13417268 | B7: 2 | C7: 169481837 | D7: 2.054e-08 | E7: 169277837 | F7: 169514837 | G7: 1 | H7: 169495399 | I7: rs34417335 | J7: 0.000316925
A8: rs2011302 | B8: 2 | C8: 193738336 | D8: 4.254e-08 | E8: 193377336 | F8: 194063336 | G8: 1 | H8: 193512100 | I8: rs74556083 | J8: 0.00194046
A9: rs2719164 | B9: 2 | C9: 194437889 | D9: 4.847e-08 | E9: 194017889 | F9: 194749889 | G9: 1 | H9: 194518833 | I9: rs62184849 | J9: 0.00471506
A10: rs9834970 | B10: 3 | C10: 36856030 | D10: 6.634e-19 | E10: 36834130 | F10: 37269030 | G10: 1 | H10: 36948417 | I10: rs4678914 | J10: 0.0156908
A11: rs2336147 | B11: 3 | C11: 52626443 | D11: 3.615e-13 | E11: 52214443 | F11: 53175443 | G11: 1 | H11: 53004465 | I11: rs62253650 | J11: 0.0016491
A12: rs115694474 | B12: 3 | C12: 70488788 | D12: 2.345e-08 | E12: 70450188 | F12: 70614788 | G12: 1 | H12: 70486960 | I12: rs62255201 | J12: 0.00696227
A13: rs696366 | B13: 3 | C13: 107757060 | D13: 4.464e-08 | E13: 107753300 | F13: 107945060 | G13: 1 | H13: 107840137 | I13: rs75380735 | J13: 0.00041582
A14: rs112481526 | B14: 4 | C14: 123076007 | D14: 1.856e-09 | E14: 123000007 | F14: 123559007 | G14: 1 | H14: 123122856 | I14: rs77087420 | J14: 0.00588944
A15: rs28565152 | B15: 5 | C15: 7542911 | D15: 1.963e-09 | E15: 7493211 | F15: 7614011 | G15: 1 | H15: 7584031 | I15: rs11134244 | J15: 0.053465
A16: rs6865469 | B16: 5 | C16: 78849505 | D16: 1.65e-08 | E16: 78800105 | F16: 78976505 | G16: 1 | H16: 78813826 | I16: rs66766617 | J16: 0.00322815
A17: rs6887473 | B17: 5 | C17: 80961069 | D17: 8.814e-09 | E17: 80727069 | F17: 80990869 | G17: 1 | H17: 80739476 | I17: rs13160388 | J17: 0.00861547
A18: rs10043984 | B18: 5 | C18: 137712121 | D18: 3.709e-08 | E18: 137673121 | F18: 137837121 | G18: 1 | H18: 137693329 | I18: rs142394181 | J18: 0.00111451
A19: rs10866641 | B19: 5 | C19: 169289206 | D19: 2.79e-11 | E19: 169172206 | F19: 169348806 | G19: 1 | H19: 169327620 | I19: rs261056 | J19: 0.000149545
A20: rs13195402 | B20: 6 | C20: 26463575 | D20: 5.751e-15 | E20: 25183575 | F20: 29463575 | G20: 1 | H20: 28677514 | I20: rs61657599 | J20: 5.48e-06
A21: rs1487445 | B21: 6 | C21: 98565211 | D21: 1.484e-15 | E21: 98224211 | F21: 98781211 | G21: 1 | H21: 98307456 | I21: rs117516868 | J21: 0.00145138
A22: rs4331993 | B22: 6 | C22: 152793572 | D22: 1.979e-08 | E22: 152707072 | F22: 152835772 | G22: 1 | H22: 152761079 | I22: rs17463277 | J22: 0.0122164
A23: rs10455979 | B23: 6 | C23: 166995260 | D23: 4.218e-09 | E23: 166969960 | F23: 167023260 | G23: 1 | H23: 166971926 | I23: rs9355584 | J23: 0.0012729
A24: rs12668848 | B24: 7 | C24: 2020995 | D24: 1.902e-09 | E24: 1861995 | F24: 2344995 | G24: 1 | H24: 2111636 | I24: rs10950536 | J24: 0.00486616
A25: rs113779084 | B25: 7 | C25: 11871787 | D25: 1.423e-13 | E25: 11854987 | F25: 12023787 | G25: 1 | H25: 11863689 | I25: rs560621662 | J25: 0.0149463
A26: rs6954854 | B26: 7 | C26: 21492589 | D26: 5.936e-10 | E26: 21451289 | F26: 21556989 | G26: 1 | H26: 21539263 | I26: rs62441762 | J26: 0.00177521
A27: rs12672003 | B27: 7 | C27: 24647222 | D27: 2.718e-09 | E27: 24499222 | F27: 24845222 | G27: 1 | H27: 24835787 | I27: rs2106760 | J27: 0.0290141
A28: rs11764361 | B28: 7 | C28: 105043229 | D28: 3.471e-09 | E28: 104455229 | F28: 105048159 | G28: 1 | H28: 104651557 | I28: rs74365863 | J28: 0.00231996
A29: rs6946056 | B29: 7 | C29: 131870597 | D29: 3.655e-08 | E29: 131859097 | F29: 131929697 | G29: 1 | H29: 131859162 | I29: rs80172977 | J29: 0.00599699
A30: rs10255167 | B30: 7 | C30: 140676153 | D30: 1.599e-08 | E30: 140244153 | F30: 140807153 | G30: 1 | H30: 140493460 | I30: rs146653274 | J30: 0.00774229
A31: rs62489493 | B31: 8 | C31: 9763581 | D31: 2.642e-11 | E31: 8313581 | F31: 11453581 | G31: 1 | H31: 10226355 | I31: rs3088186 | J31: 0.000129377
A32: rs3088186 | B32: 8 | C32: 10226355 | D32: 2.084e-08 | E32: 8096355 | F32: 11826355 | G32: 2 | H32: 9763581 | I32: rs62489493 | J32: 2.83205e-07 | K32: 11526986 | L32: rs12675779 | M32: 0.000116269
A33: rs2953928 | B33: 8 | C33: 34152492 | D33: 6.25e-09 | E33: 33405492 | F33: 35162492 | G33: 2 | H33: 34882482 | I33: rs6989491 | J33: 4.06454e-06 | K33: 34430573 | L33: rs146603236 | M33: 5.48681e-05
A34: rs6992333 | B34: 8 | C34: 144993377 | D34: 1.621e-09 | E34: 144973177 | F34: 145099377 | G34: 1 | H34: 144998514 | I34: rs75586449 | J34: 0.0151074
A35: rs10973201 | B35: 9 | C35: 37090538 | D35: 2.449e-08 | E35: 37003738 | F35: 37411538 | G35: 1 | H35: 37166189 | I35: rs62535709 | J35: 0.00421647
A36: rs62581014 | B36: 9 | C36: 141066490 | D36: 2.774e-08 | E36: 140992090 | F36: 141076890 | G36: 1 | H36: 141034913 | I36: rs62579522 | J36: 0.00831003
A37: rs1998820 | B37: 10 | C37: 18751103 | D37: 4.1e-08 | E37: 18602103 | F37: 18782803 | G37: 1 | H37: 18621630 | I37: rs17610275 | J37: 0.000303488
A38: rs10994415 | B38: 10 | C38: 62322034 | D38: 1.14e-11 | E38: 62048034 | F38: 62384334 | G38: 1 | H38: 62111617 | I38: rs1361486 | J38: 0.00116049
A39: rs10761661 | B39: 10 | C39: 64525135 | D39: 4.645e-08 | E39: 64387135 | F39: 64630135 | G39: 1 | H39: 64445025 | I39: rs74488156 | J39: 0.000914795
A40: rs2273738 | B40: 10 | C40: 111648659 | D40: 1.627e-11 | E40: 111530659 | F40: 112015659 | G40: 1 | H40: 111897648 | I40: rs76025286 | J40: 0.00501026
A41: rs174592 | B41: 11 | C41: 61618608 | D41: 9.924e-14 | E41: 61521308 | F41: 61658808 | G41: 1 | H41: 61528306 | I41: rs198470 | J41: 0.00159709
A42: rs4672 | B42: 11 | C42: 64009879 | D42: 3.42e-09 | E42: 63810879 | F42: 64176879 | G42: 1 | H42: 63951236 | I42: rs77171471 | J42: 0.00106478
A43: rs475805 | B43: 11 | C43: 65848738 | D43: 1.991e-09 | E43: 65785738 | F43: 66060738 | G43: 1 | H43: 65989041 | I43: rs187649293 | J43: 0.0102967
A44: rs678397 | B44: 11 | C44: 66324583 | D44: 5.462e-09 | E44: 66064583 | F44: 66832583 | G44: 1 | H44: 66092567 | I44: rs76878669 | J44: 0.00293908
A45: rs12575685 | B45: 11 | C45: 70517927 | D45: 1.243e-10 | E45: 70492827 | F45: 70630927 | G45: 1 | H45: 70529150 | I45: rs10899375 | J45: 0.000589406
A46: rs12289486 | B46: 11 | C46: 79092527 | D46: 3.297e-08 | E46: 79057127 | F46: 79191427 | G46: 1 | H46: 79188775 | I46: rs146458208 | J46: 0.00862892
A47: rs11062170 | B47: 12 | C47: 2348844 | D47: 1.869e-15 | E47: 2274044 | F47: 2440444 | G47: 1 | H47: 2420244 | I47: rs10848645 | J47: 0.0158
A48: rs35306827 | B48: 13 | C48: 113869045 | D48: 3.555e-09 | E48: 113800645 | F48: 113989045 | G48: 1 | H48: 113979880 | I48: rs55866528 | J48: 0.00765
A49: rs2693698 | B49: 14 | C49: 99719219 | D49: 1.961e-08 | E49: 99667219 | F49: 99733919 | G49: 1 | H49: 99688898 | I49: rs2793323 | J49: 0.00106361
A50: rs35958438 | B50: 15 | C50: 38973793 | D50: 3.83e-08 | E50: 38927093 | F50: 39007193 | G50: 1 | H50: 38931396 | I50: rs12439571 | J50: 0.0499742
A51: rs4447398 | B51: 15 | C51: 42904904 | D51: 2.613e-09 | E51: 42439904 | F51: 43377904 | G51: 1 | H51: 42924234 | I51: rs116936632 | J51: 0.00200943
A52: rs62011709 | B52: 15 | C52: 83531774 | D52: 1.433e-08 | E52: 82511774 | F52: 84027774 | G52: 1 | H52: 83733002 | I52: rs76326109 | J52: 0.000813039
A53: rs748455 | B53: 15 | C53: 85149575 | D53: 5.011e-11 | E53: 84641575 | F53: 85392575 | G53: 1 | H53: 84952645 | I53: rs68184996 | J53: 0.00310944
A54: rs4702 | B54: 15 | C54: 91426560 | D54: 3.518e-09 | E54: 91416560 | F54: 91431520 | G54: 1 | H54: 91427481 | I54: rs112565281 | J54: 0.0510594
A55: rs28455634 | B55: 16 | C55: 9230816 | D55: 2.626e-10 | E55: 9130816 | F55: 9238386 | G55: 1 | H55: 9134819 | I55: rs112549699 | J55: 0.00831244
A56: rs7199910 | B56: 16 | C56: 9926348 | D56: 1.663e-08 | E56: 9800348 | F56: 10047348 | G56: 1 | H56: 9846516 | I56: rs76047272 | J56: 0.00140579
A57: rs12932628 | B57: 16 | C57: 89632725 | D57: 6.711e-09 | E57: 89385725 | F57: 89656625 | G57: 1 | H57: 89403085 | I57: rs56781321 | J57: 0.00458986
A58: rs4790841 | B58: 17 | C58: 1835482 | D58: 3.141e-08 | E58: 1816782 | F58: 1866882 | G58: 1 | H58: 1824542 | I58: rs80050626 | J58: 0.00963732
A59: rs11870683 | B59: 17 | C59: 38129841 | D59: 2.786e-08 | E59: 37830841 | F59: 38218841 | G59: 1 | H59: 38217136 | I59: rs34867153 | J59: 5.42712e-05
A60: rs61554907 | B60: 17 | C60: 38220432 | D60: 1.636e-08 | E60: 37949432 | F60: 38481432 | G60: 1 | H60: 38129841 | I60: rs11870683 | J60: 2.05072e-05
A61: rs228768 | B61: 17 | C61: 42191893 | D61: 2.827e-10 | E61: 42090893 | F61: 42333893 | G61: 1 | H61: 42111443 | I61: rs111767734 | J61: 0.000655476
A62: rs67712855 | B62: 20 | C62: 43682551 | D62: 4.221e-11 | E62: 43592251 | F62: 43772251 | G62: 1 | H62: 43766067 | I62: rs2143943 | J62: 5.74309e-05
A63: rs6032110 | B63: 20 | C63: 43944323 | D63: 1.01e-09 | E63: 43750323 | F63: 43970423 | G63: 1 | H63: 43963739 | I63: rs12053610 | J63: 0.0039
A64: rs237460 | B64: 20 | C64: 48033127 | D64: 4.253e-09 | E64: 48007227 | F64: 48130327 | G64: 1 | H64: 48066889 | I64: rs118085064 | J64: 0.000797684
A65: rs13044225 | B65: 20 | C65: 60865815 | D65: 8.498e-09 | E65: 60781515 | F65: 60886615 | G65: 1 | H65: 60864068 | I65: rs3746656 | J65: 0.00413689
A66: rs5758064 | B66: 22 | C66: 41153879 | D66: 2.011e-08 | E66: 40876879 | F66: 41587879 | G66: 1 | H66: 41088950 | I66: rs140427371 | J66: 0.00555662
A68: Index SNP, Most significant SNP in the locus from the GWAS; Index SNP P value, P value of the index SNP from the GWAS;
A69: BP Left, Region lower bound based on linkage disequilibrium r2 0.1; BP Right, Region higher bound based on linkage disequilibrium r2 0.1;
A70: N signals, number of independent association signals in the locus, defined as the presence of a SNP with conditional P < 5E-06
A71: 2nd SNP, Most significant SNP after conditioning on the index SNP; 2nd SNP P value, P value of the 2nd SNP after conditioning on the index SNP
A72: 3rd SNP, Most significant SNP after conditioning on the index SNP and 2nd SNP; 3rd SNP P value, P value of the 3rd SNP after conditioning on the index SNP and 2nd SNP
A73: All base pair positions are on GRCh37.

Sheet Table S4
A1: Supplementary Table 4. Number of SNPs (PIP >0.95) per GWS locus across fine-mapping methods, LD reference panels and fine-mapping windows.
A2: Index SNP | B2: CHR | C2: BP | D2: FINEMAP. UKB.GWS locus window | E2: SuSiE.UKB.GWS locus window | F2: PolyFun+FINEMAP.UKB.GWS locus window | G2: PolyFun+SuSiE.UKB.GWS locus window | H2: FINEMAP.UKB.3Mb window | I2: SuSiE.UKB.3Mb window | J2: PolyFun+FINEMAP.UKB.3Mb window | K2: PolyFun+SuSiE.UKB.3Mb window | L2: FINEMAP.HRC.GWS locus window | M2: SuSiE.HRC.GWS locus window | N2: PolyFun+FINEMAP.HRC.GWS locus window | O2: PolyFun+SuSiE.HRC.GWS locus window | P2: FINEMAP.HRC.3Mb window | Q2: SuSiE.HRC.3Mb window | R2: PolyFun+FINEMAP.HRC.3Mb window | S2: PolyFun+SuSiE.HRC.3Mb window | T2: FINEMAP.InSampleLD.GWS locus window | U2: SuSiE.InSampleLD.GWS locus window | V2: PolyFun+FINEMAP.InSampleLD.GWS locus window | W2: PolyFun+SuSiE.InSampleLD.GWS locus window | X2: FINEMAP.InSampleLD.3Mb window | Y2: SuSiE.InSampleLD.3Mb window | Z2: PolyFun+FINEMAP.InSampleLD.3Mb window | AA2: PolyFun+SuSiE.InSampleLD.3Mb window | AB2: FINEMAP.NoLD.GWS locus window | AC2: SuSiE.NoLD.GWS locus window | AD2: PolyFun+FINEMAP.NoLD.GWS locus window | AE2: PolyFun+SuSiE.NoLD.GWS locus window | AF2: FINEMAP.NoLD.3Mb window | AG2: SuSiE.NoLD.3Mb window | AH2: PolyFun+FINEMAP.NoLD.3Mb window | AI2: PolyFun+SuSiE.NoLD.3Mb window
A3: rs2126180 | B3: 1 | C3: 61105668
A4: rs10737496 | B4: 1 | C4: 163745389
A5: rs4619651 | B5: 2 | C5: 97416153
A6: rs17183814 | B6: 2 | C6: 166152389
A7: rs13417268 | B7: 2 | C7: 169481837
A8: rs2011302 | B8: 2 | C8: 193738336 | J8: 2
A9: rs2719164 | B9: 2 | C9: 194437889 | D9: 2 | F9: 3
A10: rs9834970 | B10: 3 | C10: 36856030 | D10: 1 | E10: 1 | F10: 1 | G10: 1 | H10: 1 | I10: 1 | J10: 1 | K10: 1 | L10: 1 | M10: 1 | N10: 1 | O10: 1 | P10: 1 | Q10: 1 | R10: 1 | S10: 1 | T10: 1 | U10: 1 | V10: 1 | W10: 1 | X10: 1 | Y10: 1 | Z10: 1 | AA10: 1 | AB10: 1 | AC10: 1 | AD10: 1 | AE10: 1 | AF10: 1 | AG10: 1 | AH10: 1 | AI10: 1
A11: rs2336147 | B11: 3 | C11: 52626443
A12: rs115694474 | B12: 3 | C12: 70488788 | D12: 2 | F12: 2
A13: rs696366 | B13: 3 | C13: 107757060 | V13: 2
A14: rs112481526 | B14: 4 | C14: 123076007
A15: rs28565152 | B15: 5 | C15: 7542911
A16: rs6865469 | B16: 5 | C16: 78849505 | H16: 1
A17: rs6887473 | B17: 5 | C17: 80961069 | I17: 1 | K17: 1 | Q17: 1 | S17: 1 | X17: 1 | Y17: 1 | AA17: 1
A18: rs10043984 | B18: 5 | C18: 137712121
A19: rs10866641 | B19: 5 | C19: 169289206
A20: rs13195402 | B20: 6 | C20: 26463575
A21: rs1487445 | B21: 6 | C21: 98565211
A22: rs4331993 | B22: 6 | C22: 152793572
A23: rs10455979 | B23: 6 | C23: 166995260
A24: rs12668848 | B24: 7 | C24: 2020995
A25: rs113779084 | B25: 7 | C25: 11871787 | D25: 1 | E25: 1 | F25: 1 | G25: 1 | H25: 1 | I25: 1 | J25: 1 | K25: 1 | L25: 1 | M25: 1 | N25: 1 | O25: 1 | P25: 1 | Q25: 1 | R25: 1 | S25: 1 | T25: 1 | U25: 1 | V25: 1 | W25: 1 | X25: 1 | Y25: 1 | Z25: 1 | AA25: 1 | AB25: 1 | AC25: 1 | AD25: 1 | AE25: 1 | AF25: 1 | AG25: 1 | AH25: 1 | AI25: 1
A26: rs6954854 | B26: 7 | C26: 21492589
A27: rs12672003 | B27: 7 | C27: 24647222
A28: rs11764361 | B28: 7 | C28: 105043229
A29: rs6946056 | B29: 7 | C29: 131870597
A30: rs10255167 | B30: 7 | C30: 140676153
A31: rs62489493 | B31: 8 | C31: 9763581
A32: rs3088186 | B32: 8 | C32: 10226355
A33: rs2953928 | B33: 8 | C33: 34152492
A34: rs6992333 | B34: 8 | C34: 144993377
A35: rs10973201 | B35: 9 | C35: 37090538
A36: rs62581014 | B36: 9 | C36: 141066490
A37: rs1998820 | B37: 10 | C37: 18751103
A38: rs10994415 | B38: 10 | C38: 62322034
A39: rs10761661 | B39: 10 | C39: 64525135
A40: rs2273738 | B40: 10 | C40: 111648659
A41: rs174592 | B41: 11 | C41: 61618608
A42: rs4672 | B42: 11 | C42: 64009879 | D42: 1 | F42: 1 | G42: 1 | H42: 1 | I42: 1 | J42: 1 | K42: 1 | P42: 1 | Q42: 1 | R42: 1 | S42: 1 | X42: 1 | Y42: 1 | Z42: 1 | AA42: 1
A43: rs475805 | B43: 11 | C43: 65848738
A44: rs678397 | B44: 11 | C44: 66324583
A45: rs12575685 | B45: 11 | C45: 70517927 | U45: 1
A46: rs12289486 | B46: 11 | C46: 79092527
A47: rs11062170 | B47: 12 | C47: 2348844
A48: rs35306827 | B48: 13 | C48: 113869045
A49: rs2693698 | B49: 14 | C49: 99719219
A50: rs35958438 | B50: 15 | C50: 38973793
A51: rs4447398 | B51: 15 | C51: 42904904
A52: rs62011709 | B52: 15 | C52: 83531774
A53: rs748455 | B53: 15 | C53: 85149575
A54: rs4702 | B54: 15 | C54: 91426560
A55: rs28455634 | B55: 16 | C55: 9230816 | G55: 1 | H55: 1 | J55: 1 | O55: 1 | P55: 1 | R55: 1 | W55: 1 | X55: 1 | Z55: 1 | AD55: 1 | AE55: 1
A56: rs7199910 | B56: 16 | C56: 9926348 | H56: 1 | J56: 1 | P56: 1 | R56: 1 | X56: 1 | Z56: 1
A57: rs12932628 | B57: 16 | C57: 89632725
A58: rs4790841 | B58: 17 | C58: 1835482
A59: rs11870683 | B59: 17 | C59: 38129841 | K59: 1 | AA59: 1
A60: rs61554907 | B60: 17 | C60: 38220432 | F60: 1 | G60: 1 | K60: 1 | O60: 1 | S60: 1 | W60: 1 | AA60: 1
A61: rs228768 | B61: 17 | C61: 42191893
A62: rs67712855 | B62: 20 | C62: 43682551
A63: rs6032110 | B63: 20 | C63: 43944323
A64: rs237460 | B64: 20 | C64: 48033127
A65: rs13044225 | B65: 20 | C65: 60865815
A66: rs5758064 | B66: 22 | C66: 41153879
A68: SNP, single nucleotide polymorphism; CHR, chromosome; BP, GRCh37 base-pair position; PIP, posterior inclusion probability;
A69: GWS locus window, the region defined by the positions of the 3'-most and 5'-most SNPs, requiring an LD r2 greater than 0.1 with the top lead SNP within a 3Mb range;
A70: 3Mb window, a 3Mb-long region which includes the top lead SNP of the GWS locus.

Sheet Table S5
A1: Supplementary Table 5. Genomic annotations and functional consequences of fine-mapped SNPs.
A2: SNP | B2: CHR | C2: BP | D2: Name of GWS locus^ | E2: VEP Gene | F2: Gene Ensembl ID | G2: Transcript Ensembl ID | H2: VEP Consequence | I2: RegulomeDB ranking | J2: RegulomeDB probability | K2: Index SNP | L2: Closest Gene† | M2: pLI (VEP Gene) | N2: LOEUF (VEP Gene)
A3: rs17183814 | B3: 2 | C3: 166152389 | D3: SCN2A | E3: SCN2A | F3: ENSG00000136531 | G3: ENST00000283256.6 | H3: missense | I3: 5 | J3: 0.13454 | K3: yes | L3: yes | M3: 1 | N3: 0.16
A4: rs1529668 | B4: 2 | C4: 166220280 | D4: SCN2A | E4: SCN2A | F4: ENSG00000136531 | G4: ENST00000283256.6 | H4: intronic | I4: 5 | J4: 0.58955 | K4: no | L4: yes | M4: 1 | N4: 0.16
A5: rs9834970 | B5: 3 | C5: 36856030 | D5: TRANK1 | E5: - | F5: - | G5: ENSR00001657107 | H5: regulatory | I5: 4 | J5: 0.60906 | K5: yes | L5: yes | M5: - | N5: -
A6: rs28360326 | B6: 5 | C6: 82631163 | D6: SSBP2 | E6: XRCC4 | F6: ENSG00000152422 | G6: ENST00000282268.3 | H6: intronic | I6: 6 | J6: 0.34125 | K6: no | L6: no | M6: 0 | N6: 1.03
A7: rs11134593 | B7: 5 | C7: 169289635 | D7: DOCK2 | E7: DOCK2 | F7: ENSG00000134516 | G7: ENST00000256935.8 | H7: intronic | I7: 4 | J7: 0.70497 | K7: no | L7: yes | M7: 1 | N7: 0.42
A8: rs4331993 | B8: 6 | C8: 152793572 | D8: SYNE1 | E8: SYNE1 | F8: ENSG00000131018 | G8: ENST00000468937.2 | H8: non coding transcript exon variant | I8: 2b | J8: 0.76502 | K8: yes | L8: yes | M8: 0 | N8: 0.56
A9: rs113779084 | B9: 7 | C9: 11871787 | D9: THSD7A | E9: THSD7A | F9: ENSG00000005108 | G9: ENST00000423059.4 | H9: 5' UTR | I9: 4 | J9: 0.70497 | K9: yes | L9: yes | M9: 0.01 | N9: 0.5
A10: rs11764361 | B10: 7 | C10: 105043229 | D10: SRPK2 | E10: SRPK2 | F10: ENSG00000135250 | G10: ENST00000462282.1 | H10: upstream | I10: 5 | J10: 0.8475 | K10: yes | L10: yes | M10: 1 | N10: 0.35
A11: rs62489493 | B11: 8 | C11: 9763581 | D11: MIR124-1 | E11: LINC00599 | F11: ENSG00000284321 | G11: ENST00000385275.1 | H11: upstream | I11: 4 | J11: 0.60906 | K11: yes | L11: yes | M11: - | N11: -
A12: rs10867108 | B12: 9 | C12: 141017969 | D12: TUBBP5 | E12: CACNA1B | F12: ENSG00000148408 | G12: ENST00000277549.5 | H12: 3' UTR | I12: 2b | J12: 0.73193 | K12: no | L12: no | M12: 1 | N12: 0.42
A13: rs11549690 | B13: 11 | C13: 63991581 | D13: FADS2 | E13: TRPT1 | F13: ENSG00000149743 | G13: ENST00000317459.6 | H13: missense | I13: 4 | J13: 0.60906 | K13: no | L13: no | M13: 0 | N13: 1.23
A14: rs4672 | B14: 11 | C14: 64009879 | D14: FKBP2 | E14: FKBP2 | F14: ENSG00000173486 | G14: ENST00000309366.4 | H14: missense | I14: 4 | J14: 0.60906 | K14: yes | L14: yes | M14: 0 | N14: 1.22
A15: rs12575685 | B15: 11 | C15: 70517927 | D15: SHANK2 | E15: SHANK2 | F15: ENSG00000162105 | G15: ENST00000294018.4 | H15: intronic | I15: 5 | J15: 0.13454 | K15: yes | L15: yes | M15: 1 | N15: 0.42
A16: rs12148859 | B16: 15 | C16: 38982646 | D16: C15orf53 | E16: LINC02694 | F16: ENSG00000175779 | G16: ENST00000560203.1 | H16: downstream | I16: 4 | J16: 0.60906 | K16: no | L16: yes | M16: - | N16: -
A17: rs4702 | B17: 15 | C17: 91426560 | D17: FURIN | E17: FURIN | F17: ENSG00000140564 | G17: ENST00000268171.3 | H17: 3' UTR | I17: 4 | J17: 0.60906 | K17: yes | L17: yes | M17: 1 | N17: 0.3
A18: rs28455634 | B18: 16 | C18: 9230816 | D18: C16orf72 | E18: - | F18: - | G18: - | H18: intergenic | I18: 5 | J18: 0.13454 | K18: yes | L18: - | M18: - | N18: -
A19: rs12932628 | B19: 16 | C19: 89632725 | D19: RPL13 | E19: RPL13 | F19: ENSG00000167526 | G19: ENST00000311528.5 | H19: downstream | I19: 4 | J19: 0.70497 | K19: yes | L19: yes | M19: 1 | N19: 0.25
A20: rs9896486 | B20: 17 | C20: 1252843 | D20: RTN4RL1 | E20: YWHAE | F20: ENSG00000108953 | G20: ENST00000264335.8 | H20: intronic | I20: 5 | J20: 0.58955 | K20: no | L20: no | M20: 1 | N20: 0.17
A21: rs4790841 | B21: 17 | C21: 1835482 | D21: RTN4RL1 | E21: RTN4RL1 | F21: ENSG00000185924 | G21: ENST00000331238.6 | H21: downstream | I21: 4 | J21: 0.60906 | K21: yes | L21: yes | M21: 0.77 | N21: 0.63
A22: rs11870683 | B22: 17 | C22: 38129841 | D22: ERBB2 | E22: GSDMA | F22: ENSG00000167914 | G22: ENST00000301659.4 | H22: intronic | I22: 4 | J22: 0.60906 | K22: yes | L22: yes | M22: 0 | N22: 1.24
A23: rs61554907 | B23: 17 | C23: 38220432 | D23: ERBB2 | E23: THRA | F23: ENSG00000126351 | G23: ENST00000264637.4 | H23: intronic | I23: 4 | J23: 0.60906 | K23: yes | L23: yes | M23: 1 | N23: 0.44
A24: rs880447 | B24: 20 | C24: 62133276 | D24: OSBPL2 | E24: EEF1A2 | F24: ENSG00000101210 | G24: ENST00000217182.3 | H24: upstream | I24: 4 | J24: 0.60906 | K24: no | L24: no | M24: 1 | N24: 0.31
A26: CHR, BP, Ensembl Gene Identifiers, Ensembl Transcript Identifiers and MANE transcript annotations are based on GRCh37;
A27: VEP consequence, variant consequence for each consensus SNP as predicted by VEP plugin;
A28: RegulomeDB ranking and probability scores: ranking scores range from 1 to 7, with a score of 1 indicating a strong evidence of functionality, while a score of 7 suggests minimal or no evidence of functionality. Within a numeric category, variants are also annotated from most to least confident in alphabetical order; a variant with a probability score of 1 is most likely to be a regulatory variant;
A29: ^Genome-wide significant locus names as defined in the GWAS publication (Mullins et al., Nat Genet, 2021);
A30: †Closest gene indicates whether the VEP annotated gene is the closest to the index SNP from the GWAS
A31: pLI score, tolerance of a given gene to the loss of function on the basis of the number of protein truncating variants; genes with LOEUF< 0.6 or pLI ≥0.9 are classified as highly intolerant to loss-of-function mutations (gnomAD v.4.0.0);
A32: All base pair positions are on GRCh37.

Sheet Table S6
A1: Supplementary Table 6. Significant SMR results from BrainMeta eQTL and sQTL data and Brain-mMeta mQTL data for union consensus SNPs.
A2: Dataset | B2: Probe ID | C2: CHR | D2: Gene | E2: Probe position | F2: topSNP | G2: topSNP CHR | H2: topSNP position | I2: A1 | J2: A2 | K2: Freq A1 | L2: beta GWAS | M2: se GWAS | N2: P value GWAS | O2: beta eQTL | P2: se eQTL | Q2: P value eQTL | R2: beta SMR | S2: se SMR | T2: P value SMR* | U2: P value HEIDI^ | V2: nsnp_HEIDI
A3: eQTL | B3: ENSG00000163673.7 | C3: 3 | D3: DCLK3 | E3: 36779876 | F3: rs9834970 | G3: 3 | H3: 36856030 | I3: T | J3: C | K3: 0.507 | L3: -0.083 | M3: 0.009 | N3: 6.63e-19 | O3: 0.262 | P3: 0.028 | Q3: 8.26e-21 | R3: -0.317 | S3: 0.049 | T3: 1.06e-10 | U3: 0.118 | V3: 20
A4: eQTL | B4: ENSG00000168016.15 | C4: 3 | D4: TRANK1 | E4: 36927429 | F4: rs9834970 | G4: 3 | H4: 36856030 | I4: T | J4: C | K4: 0.507 | L4: -0.083 | M4: 0.009 | N4: 6.63e-19 | O4: 0.289 | P4: 0.032 | Q4: 1.83e-19 | R4: -0.288 | S4: 0.045 | T4: 2.22e-10 | U4: 0.033 | V4: 20
A5: eQTL | B5: ENSG00000148408.13 | C5: 9 | D5: CACNA1B | E5: 140895655 | F5: rs10867108 | G5: 9 | H5: 141017969 | I5: T | J5: C | K5: 0.384 | L5: 0.059 | M5: 0.011 | N5: 4.15e-08 | O5: 0.375 | P5: 0.031 | Q5: 4.23e-34 | R5: 0.157 | S5: 0.032 | T5: 6.23e-07 | U5: 0.034 | V5: 20
A6: eQTL | B6: ENSG00000286264.2 | C6: 11 | D6: AP001453.3 | E6: 64010086 | F6: rs11549690 | G6: 11 | H6: 63991581 | I6: A | J6: G | K6: 0.073 | L6: 0.097 | M6: 0.018 | N6: 6.66e-08 | O6: 0.392 | P6: 0.057 | Q6: 8.1e-12 | R6: 0.246 | S6: 0.058 | T6: 2.28e-05 | U6: 0.534 | V6: 20
A7: eQTL | B7: ENSG00000149782.13 | C7: 11 | D7: PLCB3 | E7: 64027812 | F7: rs11549690 | G7: 11 | H7: 63991581 | I7: A | J7: G | K7: 0.073 | L7: 0.097 | M7: 0.018 | N7: 6.66e-08 | O7: 0.402 | P7: 0.056 | Q7: 7.57e-13 | R7: 0.24 | S7: 0.056 | T7: 1.62e-05 | U7: 0.021 | V7: 20
A8: eQTL | B8: ENSG00000182450.13 | C8: 11 | D8: KCNK4 | E8: 64063138 | F8: rs11549690 | G8: 11 | H8: 63991581 | I8: A | J8: G | K8: 0.073 | L8: 0.097 | M8: 0.018 | N8: 6.66e-08 | O8: 0.419 | P8: 0.062 | Q8: 1.42e-11 | R8: 0.23 | S8: 0.055 | T8: 2.48e-05 | U8: 0.024 | V8: 20
A9: eQTL | B9: ENSG00000126432.14 | C9: 11 | D9: PRDX5 | E9: 64087438 | F9: rs11549690 | G9: 11 | H9: 63991581 | I9: A | J9: G | K9: 0.073 | L9: 0.097 | M9: 0.018 | N9: 6.66e-08 | O9: -0.363 | P9: 0.06 | Q9: 1.52e-09 | R9: -0.266 | S9: 0.066 | T9: 5.7e-05 | U9: 0.014 | V9: 20
A10: eQTL | B10: ENSG00000286264.2 | C10: 11 | D10: AP001453.3 | E10: 64010086 | F10: rs4672 | G10: 11 | H10: 64009879 | I10: A | J10: G | K10: 0.079 | L10: 0.102 | M10: 0.017 | N10: 3.42e-09 | O10: 0.422 | P10: 0.055 | Q10: 1.94e-14 | R10: 0.241 | S10: 0.052 | T10: 2.88e-06 | U10: 0.534 | V10: 20
A11: eQTL | B11: ENSG00000149782.13 | C11: 11 | D11: PLCB3 | E11: 64027812 | F11: rs4672 | G11: 11 | H11: 64009879 | I11: A | J11: G | K11: 0.079 | L11: 0.102 | M11: 0.017 | N11: 3.42e-09 | O11: 0.416 | P11: 0.054 | Q11: 1.47e-14 | R11: 0.244 | S11: 0.052 | T11: 2.77e-06 | U11: 0.021 | V11: 20
A12: eQTL | B12: ENSG00000182450.13 | C12: 11 | D12: KCNK4 | E12: 64063138 | F12: rs4672 | G12: 11 | H12: 64009879 | I12: A | J12: G | K12: 0.079 | L12: 0.102 | M12: 0.017 | N12: 3.42e-09 | O12: 0.453 | P12: 0.06 | Q12: 2.69e-14 | R12: 0.224 | S12: 0.048 | T12: 3.02e-06 | U12: 0.024 | V12: 20
A13: eQTL | B13: ENSG00000126432.14 | C13: 11 | D13: PRDX5 | E13: 64087438 | F13: rs4672 | G13: 11 | H13: 64009879 | I13: A | J13: G | K13: 0.079 | L13: 0.102 | M13: 0.017 | N13: 3.42e-09 | O13: -0.409 | P13: 0.057 | Q13: 1.15e-12 | R13: -0.249 | S13: 0.055 | T13: 5.46e-06 | U13: 0.014 | V13: 20
A14: eQTL | B14: ENSG00000140564.13 | C14: 15 | D14: FURIN | E14: 91419306 | F14: rs4702 | G14: 15 | H14: 91426560 | I14: G | J14: A | K14: 0.449 | L14: 0.057 | M14: 0.01 | N14: 3.52e-09 | O14: -0.454 | P14: 0.03 | Q14: 3.57e-53 | R14: -0.126 | S14: 0.023 | T14: 3.53e-08 | U14: 0.308 | V14: 20
A15: eQTL | B15: ENSG00000182511.12 | C15: 15 | D15: FES | E15: 91432966 | F15: rs4702 | G15: 15 | H15: 91426560 | I15: G | J15: A | K15: 0.449 | L15: 0.057 | M15: 0.01 | N15: 3.52e-09 | O15: 0.252 | P15: 0.03 | Q15: 2.56e-17 | R15: 0.227 | S15: 0.047 | T15: 1.27e-06 | U15: 0.024 | V15: 19
A16: eQTL | B16: ENSG00000101210.13 | C16: 20 | D16: EEF1A2 | E16: 62124979 | F16: rs880447 | G16: 20 | H16: 62133276 | I16: C | J16: G | K16: 0.416 | L16: 0.053 | M16: 0.011 | N16: 5.79e-07 | O16: 0.189 | P16: 0.033 | Q16: 1.13e-08 | R16: 0.278 | S16: 0.074 | T16: 0.000169 | U16: 0.022 | V16: 20
A17: sQTL | B17: chr2:166096150:166152283:clu_239009_ | C17: 2 | D17: SCN2A | E17: 166124216 | F17: rs1529668 | G17: 2 | H17: 166220280 | I17: A | J17: T | K17: 0.066 | L17: -0.105 | M17: 0.019 | N17: 3.88e-08 | O17: 0.395 | P17: 0.055 | Q17: 6.63e-13 | R17: -0.265 | S17: 0.061 | T17: 1.31e-05 | U17: 0.219 | V17: 4
A18: sQTL | B18: chr2:166096150:166152390:clu_239009_ | C18: 2 | D18: SCN2A | E18: 166124270 | F18: rs1529668 | G18: 2 | H18: 166220280 | I18: A | J18: T | K18: 0.066 | L18: -0.105 | M18: 0.019 | N18: 3.88e-08 | O18: -0.992 | P18: 0.051 | Q18: 1.07e-84 | R18: 0.106 | S18: 0.02 | T18: 1.31e-07 | U18: 0.179 | V18: 20
A19: sQTL | B19: chr2:166096150:166152283:clu_239009_ | C19: 2 | D19: SCN2A | E19: 166124216 | F19: rs17183814 | G19: 2 | H19: 166152389 | I19: A | J19: G | K19: 0.07 | L19: -0.103 | M19: 0.019 | N19: 2.68e-08 | O19: 0.407 | P19: 0.055 | Q19: 1.9e-13 | R19: -0.253 | S19: 0.057 | T19: 9.14e-06 | U19: 0.219 | V19: 4
A20: sQTL | B20: chr2:166096150:166152390:clu_239009_ | C20: 2 | D20: SCN2A | E20: 166124270 | F20: rs17183814 | G20: 2 | H20: 166152389 | I20: A | J20: G | K20: 0.07 | L20: -0.103 | M20: 0.019 | N20: 2.68e-08 | O20: -1.041 | P20: 0.051 | Q20: 7.16e-93 | R20: 0.099 | S20: 0.018 | T20: 8.01e-08 | U20: 0.179 | V20: 20
A21: sQTL | B21: chr9:141013220:141013595:clu_134277_ | C21: 9 | D21: CACNA1B | E21: 141013408 | F21: rs10867108 | G21: 9 | H21: 141017969 | I21: T | J21: C | K21: 0.384 | L21: 0.059 | M21: 0.011 | N21: 4.15e-08 | O21: 0.175 | P21: 0.03 | Q21: 3.33e-09 | R21: 0.338 | S21: 0.084 | T21: 6e-05 | U21: 0.229 | V21: 20
A22: sQTL | B22: chr9:141044760:141045176:clu_134283_ | C22: 9 | D22: TUBBP5 | E22: 141044968 | F22: rs10867108 | G22: 9 | H22: 141017969 | I22: T | J22: C | K22: 0.384 | L22: 0.059 | M22: 0.011 | N22: 4.15e-08 | O22: -0.181 | P22: 0.029 | Q22: 2.5e-10 | R22: -0.326 | S22: 0.079 | T22: 3.55e-05 | U22: 0.071 | V22: 20
A23: sQTL | B23: chr9:141044760:141051804:clu_134283_ | C23: 9 | D23: TUBBP5 | E23: 141048282 | F23: rs10867108 | G23: 9 | H23: 141017969 | I23: T | J23: C | K23: 0.384 | L23: 0.059 | M23: 0.011 | N23: 4.15e-08 | O23: -0.185 | P23: 0.03 | Q23: 9.94e-10 | R23: -0.318 | S23: 0.078 | T23: 4.65e-05 | U23: 0.063 | V23: 20
A24: sQTL | B24: chr9:141045293:141051804:clu_134283_ | C24: 9 | D24: TUBBP5 | E24: 141048548 | F24: rs10867108 | G24: 9 | H24: 141017969 | I24: T | J24: C | K24: 0.384 | L24: 0.059 | M24: 0.011 | N24: 4.15e-08 | O24: -0.187 | P24: 0.029 | Q24: 1.59e-10 | R24: -0.315 | S24: 0.076 | T24: 3.27e-05 | U24: 0.046 | V24: 20
A25: sQTL | B25: chr9:141051921:141052124:clu_134283_ | C25: 9 | D25: TUBBP5 | E25: 141052022 | F25: rs10867108 | G25: 9 | H25: 141017969 | I25: T | J25: C | K25: 0.384 | L25: 0.059 | M25: 0.011 | N25: 4.15e-08 | O25: -0.212 | P25: 0.03 | Q25: 7.57e-13 | R25: -0.279 | S25: 0.064 | T25: 1.39e-05 | U25: 0.03 | V25: 20
A26: sQTL | B26: chr9:141044760:141068594:clu_134283_ | C26: 9 | D26: TUBBP5 | E26: 141056677 | F26: rs10867108 | G26: 9 | H26: 141017969 | I26: T | J26: C | K26: 0.384 | L26: 0.059 | M26: 0.011 | N26: 4.15e-08 | O26: -0.241 | P26: 0.033 | Q26: 2.28e-13 | R26: -0.245 | S26: 0.056 | T26: 1.19e-05 | U26: 0.014 | V26: 20
A27: sQTL | B27: chr9:141044760:141068822:clu_134283_ | C27: 9 | D27: TUBBP5 | E27: 141056791 | F27: rs10867108 | G27: 9 | H27: 141017969 | I27: T | J27: C | K27: 0.384 | L27: 0.059 | M27: 0.011 | N27: 4.15e-08 | O27: -0.172 | P27: 0.03 | Q27: 5.2e-09 | R27: -0.342 | S27: 0.086 | T27: 6.62e-05 | U27: 0.288 | V27: 20
A28: sQTL | B28: chr9:141044760:141068825:clu_134283_ | C28: 9 | D28: TUBBP5 | E28: 141056792 | F28: rs10867108 | G28: 9 | H28: 141017969 | I28: T | J28: C | K28: 0.384 | L28: 0.059 | M28: 0.011 | N28: 4.15e-08 | O28: -0.217 | P28: 0.03 | Q28: 7.1e-13 | R28: -0.271 | S28: 0.062 | T28: 1.38e-05 | U28: 0.051 | V28: 20
A29: sQTL | B29: chr9:141045293:141068498:clu_134283_ | C29: 9 | D29: TUBBP5 | E29: 141056896 | F29: rs10867108 | G29: 9 | H29: 141017969 | I29: T | J29: C | K29: 0.384 | L29: 0.059 | M29: 0.011 | N29: 4.15e-08 | O29: -0.216 | P29: 0.028 | Q29: 2.48e-14 | R29: -0.273 | S29: 0.062 | T29: 8.98e-06 | U29: 0.028 | V29: 20
A30: sQTL | B30: chr9:141045293:141068594:clu_134283_ | C30: 9 | D30: TUBBP5 | E30: 141056944 | F30: rs10867108 | G30: 9 | H30: 141017969 | I30: T | J30: C | K30: 0.384 | L30: 0.059 | M30: 0.011 | N30: 4.15e-08 | O30: -0.226 | P30: 0.03 | Q30: 9.74e-14 | R30: -0.261 | S30: 0.059 | T30: 1.06e-05 | U30: 0.036 | V30: 20
A31: sQTL | B31: chr9:141045293:141068822:clu_134283_ | C31: 9 | D31: TUBBP5 | E31: 141057058 | F31: rs10867108 | G31: 9 | H31: 141017969 | I31: T | J31: C | K31: 0.384 | L31: 0.059 | M31: 0.011 | N31: 4.15e-08 | O31: -0.198 | P31: 0.029 | Q31: 1.5e-11 | R31: -0.298 | S31: 0.07 | T31: 2.18e-05 | U31: 0.051 | V31: 20
A32: sQTL | B32: chr9:141044760:141069815:clu_134283_ | C32: 9 | D32: TUBBP5 | E32: 141057288 | F32: rs10867108 | G32: 9 | H32: 141017969 | I32: T | J32: C | K32: 0.384 | L32: 0.059 | M32: 0.011 | N32: 4.15e-08 | O32: -0.224 | P32: 0.03 | Q32: 1.39e-13 | R32: -0.263 | S32: 0.06 | T32: 1.11e-05 | U32: 0.045 | V32: 20
A33: sQTL | B33: chr9:141051921:141068498:clu_134283_ | C33: 9 | D33: TUBBP5 | E33: 141060210 | F33: rs10867108 | G33: 9 | H33: 141017969 | I33: T | J33: C | K33: 0.384 | L33: 0.059 | M33: 0.011 | N33: 4.15e-08 | O33: -0.182 | P33: 0.031 | Q33: 3.95e-09 | R33: -0.325 | S33: 0.081 | T33: 6.23e-05 | U33: 0.247 | V33: 20
A34: sQTL | B34: chr9:141051921:141068594:clu_134283_ | C34: 9 | D34: TUBBP5 | E34: 141060258 | F34: rs10867108 | G34: 9 | H34: 141017969 | I34: T | J34: C | K34: 0.384 | L34: 0.059 | M34: 0.011 | N34: 4.15e-08 | O34: -0.222 | P34: 0.03 | Q34: 2.75e-13 | R34: -0.266 | S34: 0.061 | T34: 1.21e-05 | U34: 0.049 | V34: 20
A35: sQTL | B35: chr9:141051921:141068822:clu_134283_ | C35: 9 | D35: TUBBP5 | E35: 141060372 | F35: rs10867108 | G35: 9 | H35: 141017969 | I35: T | J35: C | K35: 0.384 | L35: 0.059 | M35: 0.011 | N35: 4.15e-08 | O35: -0.203 | P35: 0.029 | Q35: 3.95e-12 | R35: -0.29 | S35: 0.068 | T35: 1.77e-05 | U35: 0.056 | V35: 20
A36: sQTL | B36: chr9:141069552:141069815:clu_134283_ | C36: 9 | D36: TUBBP5 | E36: 141069684 | F36: rs10867108 | G36: 9 | H36: 141017969 | I36: T | J36: C | K36: 0.384 | L36: 0.059 | M36: 0.011 | N36: 4.15e-08 | O36: -0.216 | P36: 0.029 | Q36: 2.12e-13 | R36: -0.273 | S36: 0.062 | T36: 1.17e-05 | U36: 0.023 | V36: 20
A37: sQTL | B37: chr11:63991439:63991572:clu_13850_ | C37: 11 | D37: TRPT1 | E37: 63991506 | F37: rs11549690 | G37: 11 | H37: 63991581 | I37: A | J37: G | K37: 0.073 | L37: 0.097 | M37: 0.018 | N37: 6.66e-08 | O37: -0.779 | P37: 0.055 | Q37: 2.75e-46 | R37: -0.124 | S37: 0.025 | T37: 4.46e-07 | U37: 0.064 | V37: 20
A38: sQTL | B38: chr11:63991439:63991757:clu_13850_ | C38: 11 | D38: TRPT1 | E38: 63991598 | F38: rs11549690 | G38: 11 | H38: 63991581 | I38: A | J38: G | K38: 0.073 | L38: 0.097 | M38: 0.018 | N38: 6.66e-08 | O38: 1.426 | P38: 0.052 | Q38: 4.96e-168 | R38: 0.068 | S38: 0.013 | T38: 1.18e-07 | U38: 0.481 | V38: 20
A39: sQTL | B39: chr11:63991634:63991757:clu_13850_ | C39: 11 | D39: TRPT1 | E39: 63991696 | F39: rs11549690 | G39: 11 | H39: 63991581 | I39: A | J39: G | K39: 0.073 | L39: 0.097 | M39: 0.018 | N39: 6.66e-08 | O39: -0.391 | P39: 0.055 | Q39: 8.02e-13 | R39: -0.247 | S39: 0.057 | T39: 1.63e-05 | U39: 0.141 | V39: 20
A40: sQTL | B40: chr11:63991682:63991757:clu_13850_ | C40: 11 | D40: TRPT1 | E40: 63991720 | F40: rs11549690 | G40: 11 | H40: 63991581 | I40: A | J40: G | K40: 0.073 | L40: 0.097 | M40: 0.018 | N40: 6.66e-08 | O40: 0.477 | P40: 0.049 | Q40: 3.87e-22 | R40: 0.202 | S40: 0.043 | T40: 2.44e-06 | U40: 0.07 | V40: 20
A41: sQTL | B41: chr11:63991963:63992971:clu_13852_ | C41: 11 | D41: TRPT1 | E41: 63992467 | F41: rs11549690 | G41: 11 | H41: 63991581 | I41: A | J41: G | K41: 0.073 | L41: 0.097 | M41: 0.018 | N41: 6.66e-08 | O41: -0.397 | P41: 0.06 | Q41: 4.89e-11 | R41: -0.243 | S41: 0.058 | T41: 3.03e-05 | U41: 0.154 | V41: 20
A42: sQTL | B42: ENSG00000110011.13 | C42: 11 | D42: DNAJC4 | E42: 63999754 | F42: rs11549690 | G42: 11 | H42: 63991581 | I42: A | J42: G | K42: 0.073 | L42: 0.097 | M42: 0.018 | N42: 6.66e-08 | O42: 0.107 | P42: 0.017 | Q42: 5.58e-10 | R42: 0.907 | S42: 0.223 | T42: 4.68e-05 | U42: 0.024 | V42: 20
A43: sQTL | B43: chr11:64008710:64009856:clu_290466_ | C43: 11 | D43: FKBP2 | E43: 64009283 | F43: rs11549690 | G43: 11 | H43: 63991581 | I43: A | J43: G | K43: 0.073 | L43: 0.097 | M43: 0.018 | N43: 6.66e-08 | O43: -0.386 | P43: 0.053 | Q43: 2.26e-13 | R43: -0.25 | S43: 0.058 | T43: 1.38e-05 | U43: 0.14 | V43: 20
A44: sQTL | B44: chr11:64009006:64009856:clu_290466_ | C44: 11 | D44: FKBP2 | E44: 64009431 | F44: rs11549690 | G44: 11 | H44: 63991581 | I44: A | J44: G | K44: 0.073 | L44: 0.097 | M44: 0.018 | N44: 6.66e-08 | O44: -0.327 | P44: 0.057 | Q44: 1.1e-08 | R44: -0.296 | S44: 0.075 | T44: 8.73e-05 | U44: 0.486 | V44: 20
A45: sQTL | B45: chr11:64009685:64009856:clu_290466_ | C45: 11 | D45: FKBP2 | E45: 64009770 | F45: rs11549690 | G45: 11 | H45: 63991581 | I45: A | J45: G | K45: 0.073 | L45: 0.097 | M45: 0.018 | N45: 6.66e-08 | O45: 0.299 | P45: 0.05 | Q45: 2.68e-09 | R45: 0.323 | S45: 0.081 | T45: 6.41e-05 | U45: 0.187 | V45: 20
A46: sQTL | B46: ENSG00000286264.2 | C46: 11 | D46: AP001453.3 | E46: 64010085 | F46: rs11549690 | G46: 11 | H46: 63991581 | I46: A | J46: G | K46: 0.073 | L46: 0.097 | M46: 0.018 | N46: 6.66e-08 | O46: 0.136 | P46: 0.017 | Q46: 2.84e-15 | R46: 0.712 | S46: 0.16 | T46: 8.36e-06 | U46: 0.048 | V46: 20
A47: sQTL | B47: chr11:64087340:64088337:clu_290506_ | C47: 11 | D47: PRDX5 | E47: 64087838 | F47: rs11549690 | G47: 11 | H47: 63991581 | I47: A | J47: G | K47: 0.073 | L47: 0.097 | M47: 0.018 | N47: 6.66e-08 | O47: -0.32 | P47: 0.056 | Q47: 9.86e-09 | R47: -0.302 | S47: 0.077 | T47: 8.51e-05 | U47: 0.045 | V47: 20
A48: sQTL | B48: chr11:63991439:63991572:clu_13850_ | C48: 11 | D48: TRPT1 | E48: 63991506 | F48: rs4672 | G48: 11 | H48: 64009879 | I48: A | J48: G | K48: 0.079 | L48: 0.102 | M48: 0.017 | N48: 3.42e-09 | O48: -0.642 | P48: 0.053 | Q48: 2.9e-33 | R48: -0.158 | S48: 0.03 | T48: 1.12e-07 | U48: 0.064 | V48: 20
A49: sQTL | B49: chr11:63991439:63991757:clu_13850_ | C49: 11 | D49: TRPT1 | E49: 63991598 | F49: rs4672 | G49: 11 | H49: 64009879 | I49: A | J49: G | K49: 0.079 | L49: 0.102 | M49: 0.017 | N49: 3.42e-09 | O49: 1.292 | P49: 0.051 | Q49: 1.33e-141 | R49: 0.079 | S49: 0.014 | T49: 8.51e-09 | U49: 0.526 | V49: 20
A50: sQTL | B50: chr11:63991634:63991757:clu_13850_ | C50: 11 | D50: TRPT1 | E50: 63991696 | F50: rs4672 | G50: 11 | H50: 64009879 | I50: A | J50: G | K50: 0.079 | L50: 0.102 | M50: 0.017 | N50: 3.42e-09 | O50: -0.376 | P50: 0.053 | Q50: 9.43e-13 | R50: -0.271 | S50: 0.059 | T50: 5.27e-06 | U50: 0.141 | V50: 20
A51: sQTL | B51: chr11:63991682:63991757:clu_13850_ | C51: 11 | D51: TRPT1 | E51: 63991720 | F51: rs4672 | G51: 11 | H51: 64009879 | I51: A | J51: G | K51: 0.079 | L51: 0.102 | M51: 0.017 | N51: 3.42e-09 | O51: 0.366 | P51: 0.048 | Q51: 4.22e-14 | R51: 0.278 | S51: 0.06 | T51: 3.22e-06 | U51: 0.07 | V51: 20
A52: sQTL | B52: chr11:63991963:63992971:clu_13852_ | C52: 11 | D52: TRPT1 | E52: 63992467 | F52: rs4672 | G52: 11 | H52: 64009879 | I52: A | J52: G | K52: 0.079 | L52: 0.102 | M52: 0.017 | N52: 3.42e-09 | O52: -0.358 | P52: 0.058 | Q52: 7.83e-10 | R52: -0.284 | S52: 0.067 | T52: 2.03e-05 | U52: 0.154 | V52: 20
A53: sQTL | B53: ENSG00000110011.13 | C53: 11 | D53: DNAJC4 | E53: 63999754 | F53: rs4672 | G53: 11 | H53: 64009879 | I53: A | J53: G | K53: 0.079 | L53: 0.102 | M53: 0.017 | N53: 3.42e-09 | O53: 0.099 | P53: 0.016 | Q53: 2.38e-10 | R53: 1.024 | S53: 0.237 | T53: 1.54e-05 | U53: 0.024 | V53: 20
A54: sQTL | B54: chr11:64008710:64009856:clu_290466_ | C54: 11 | D54: FKBP2 | E54: 64009283 | F54: rs4672 | G54: 11 | H54: 64009879 | I54: A | J54: G | K54: 0.079 | L54: 0.102 | M54: 0.017 | N54: 3.42e-09 | O54: -0.404 | P54: 0.051 | Q54: 1.24e-15 | R54: -0.251 | S54: 0.053 | T54: 1.98e-06 | U54: 0.14 | V54: 20
A55: sQTL | B55: chr11:64009006:64009856:clu_290466_ | C55: 11 | D55: FKBP2 | E55: 64009431 | F55: rs4672 | G55: 11 | H55: 64009879 | I55: A | J55: G | K55: 0.079 | L55: 0.102 | M55: 0.017 | N55: 3.42e-09 | O55: -0.391 | P55: 0.054 | Q55: 6.87e-13 | R55: -0.26 | S55: 0.057 | T55: 5e-06 | U55: 0.486 | V55: 20
A56: sQTL | B56: chr11:64009685:64009856:clu_290466_ | C56: 11 | D56: FKBP2 | E56: 64009770 | F56: rs4672 | G56: 11 | H56: 64009879 | I56: A | J56: G | K56: 0.079 | L56: 0.102 | M56: 0.017 | N56: 3.42e-09 | O56: 0.325 | P56: 0.048 | Q56: 1.17e-11 | R56: 0.313 | S56: 0.07 | T56: 8.29e-06 | U56: 0.187 | V56: 20
A57: sQTL | B57: ENSG00000286264.2 | C57: 11 | D57: AP001453.3 | E57: 64010085 | F57: rs4672 | G57: 11 | H57: 64009879 | I57: A | J57: G | K57: 0.079 | L57: 0.102 | M57: 0.017 | N57: 3.42e-09 | O57: 0.136 | P57: 0.016 | Q57: 3.51e-18 | R57: 0.746 | S57: 0.153 | T57: 1.01e-06 | U57: 0.048 | V57: 20
A58: sQTL | B58: chr11:64087340:64088337:clu_290506_ | C58: 11 | D58: PRDX5 | E58: 64087838 | F58: rs4672 | G58: 11 | H58: 64009879 | I58: A | J58: G | K58: 0.079 | L58: 0.102 | M58: 0.017 | N58: 3.42e-09 | O58: -0.319 | P58: 0.054 | Q58: 2.45e-09 | R58: -0.319 | S58: 0.076 | T58: 2.68e-05 | U58: 0.045 | V58: 20
A59: sQTL | B59: chr15:91427774:91428267:clu_231620_ | C59: 15 | D59: FES | E59: 91428020 | F59: rs4702 | G59: 15 | H59: 91426560 | I59: G | J59: A | K59: 0.449 | L59: 0.057 | M59: 0.01 | N59: 3.52e-09 | O59: -0.213 | P59: 0.027 | Q59: 3.12e-15 | R59: -0.269 | S59: 0.057 | T59: 2.27e-06 | U59: 0.023 | V59: 20
A60: sQTL | B60: chr17:38064454:38065211:clu_149449_ | C60: 17 | D60: GSDMB | E60: 38064832 | F60: rs11870683 | G60: 17 | H60: 38129841 | I60: A | J60: T | K60: 0.361 | L60: -0.057 | M60: 0.01 | N60: 2.79e-08 | O60: 0.32 | P60: 0.041 | Q60: 1.05e-14 | R60: -0.179 | S60: 0.04 | T60: 6.31e-06 | U60: 0.14 | V60: 20
A61: sQTL | B61: chr17:38064467:38065211:clu_149449_ | C61: 17 | D61: GSDMB | E61: 38064839 | F61: rs11870683 | G61: 17 | H61: 38129841 | I61: A | J61: T | K61: 0.361 | L61: -0.057 | M61: 0.01 | N61: 2.79e-08 | O61: -0.23 | P61: 0.037 | Q61: 3.18e-10 | R61: 0.249 | S61: 0.06 | T61: 3.09e-05 | U61: 0.034 | V61: 20
A62: sQTL | B62: chr17:38176263:38176526:clu_149493_ | C62: 17 | D62: MED24 | E62: 38176394 | F62: rs11870683 | G62: 17 | H62: 38129841 | I62: A | J62: T | K62: 0.361 | L62: -0.057 | M62: 0.01 | N62: 2.79e-08 | O62: 0.202 | P62: 0.028 | Q62: 7.12e-13 | R62: -0.284 | S62: 0.065 | T62: 1.1e-05 | U62: 0.116 | V62: 20
A63: sQTL | B63: chr17:38176606:38176781:clu_149494_ | C63: 17 | D63: MED24 | E63: 38176694 | F63: rs11870683 | G63: 17 | H63: 38129841 | I63: A | J63: T | K63: 0.361 | L63: -0.057 | M63: 0.01 | N63: 2.79e-08 | O63: 0.199 | P63: 0.028 | Q63: 6.5e-13 | R63: -0.288 | S63: 0.066 | T63: 1.08e-05 | U63: 0.015 | V63: 20
A64: sQTL | B64: chr17:38176872:38178208:clu_149494_ | C64: 17 | D64: MED24 | E64: 38177540 | F64: rs11870683 | G64: 17 | H64: 38129841 | I64: A | J64: T | K64: 0.361 | L64: -0.057 | M64: 0.01 | N64: 2.79e-08 | O64: 0.254 | P64: 0.027 | Q64: 1.5e-21 | R64: -0.226 | S64: 0.047 | T64: 1.55e-06 | U64: 0.1 | V64: 20
A65: sQTL | B65: chr17:1268352:1273003:clu_144985_ | C65: 17 | D65: YWHAE | E65: 1270678 | F65: rs9896486 | G65: 17 | H65: 1252843 | I65: T | J65: G | K65: 0.404 | L65: 0.052 | M65: 0.01 | N65: 5.91e-08 | O65: -0.191 | P65: 0.027 | Q65: 1.47e-12 | R65: -0.269 | S65: 0.063 | T65: 1.68e-05 | U65: 0.03 | V65: 20
A66: mQTL | B66: cg00528902 | C66: 8 | E66: 9760528 | F66: rs62489493 | G66: 8 | H66: 9763581 | I66: C | J66: G | K66: 0.865 | L66: -0.09 | M66: 0.014 | N66: 2.64e-11 | O66: -0.556 | P66: 0.063 | Q66: 1.14e-18 | R66: 0.161 | S66: 0.03 | T66: 1.11e-07 | U66: 0.109 | V66: 20
A67: mQTL | B67: cg23585835 | C67: 8 | E67: 9764602 | F67: rs62489493 | G67: 8 | H67: 9763581 | I67: C | J67: G | K67: 0.865 | L67: -0.09 | M67: 0.014 | N67: 2.64e-11 | O67: 0.49 | P67: 0.088 | Q67: 2.94e-08 | R67: -0.183 | S67: 0.043 | T67: 2.07e-05 | U67: 0.138 | V67: 20
A68: mQTL | B68: cg11269159 | C68: 8 | E68: 9788745 | F68: rs62489493 | G68: 8 | H68: 9763581 | I68: C | J68: G | K68: 0.865 | L68: -0.09 | M68: 0.014 | N68: 2.64e-11 | O68: 0.674 | P68: 0.086 | Q68: 4.31e-15 | R68: -0.133 | S68: 0.026 | T68: 3.97e-07 | U68: 0.37 | V68: 20
A69: mQTL | B69: cg13811936 | C69: 9 | E69: 141017001 | F69: rs10867108 | G69: 9 | H69: 141017969 | I69: T | J69: C | K69: 0.384 | L69: 0.059 | M69: 0.011 | N69: 4.15e-08 | O69: 0.285 | P69: 0.047 | Q69: 1.1e-09 | R69: 0.207 | S69: 0.051 | T69: 4.75e-05 | U69: 0.036 | V69: 8
A70: mQTL | B70: cg14078730 | C70: 11 | E70: 63896557 | F70: rs11549690 | G70: 11 | H70: 63991581 | I70: G | J70: A | K70: 0.927 | L70: -0.097 | M70: 0.018 | N70: 6.66e-08 | O70: -0.744 | P70: 0.118 | Q70: 2.5e-10 | R70: 0.13 | S70: 0.032 | T70: 4.03e-05 | U70: 0.023 | V70: 20
A71: mQTL | B71: cg19270469 | C71: 11 | E71: 64023919 | F71: rs11549690 | G71: 11 | H71: 63991581 | I71: G | J71: A | K71: 0.927 | L71: -0.097 | M71: 0.018 | N71: 6.66e-08 | O71: 0.764 | P71: 0.117 | Q71: 7.7e-11 | R71: -0.126 | S71: 0.03 | T71: 3.27e-05 | U71: 0.014 | V71: 18
A72: mQTL | B72: cg11279857 | C72: 11 | D72: FKBP2 | E72: 64009878 | F72: rs4672 | G72: 11 | H72: 64009879 | I72: G | J72: A | K72: 0.921 | L72: -0.102 | M72: 0.017 | N72: 3.42e-09 | O72: 1.749 | P72: 0.112 | Q72: 2.12e-55 | R72: -0.058 | S72: 0.011 | T72: 3.16e-08 | U72: 0.643 | V72: 7
A73: mQTL | B73: cg26204322 | C73: 11 | D73: PLCB3 | E73: 64018687 | F73: rs4672 | G73: 11 | H73: 64009879 | I73: G | J73: A | K73: 0.921 | L73: -0.102 | M73: 0.017 | N73: 3.42e-09 | O73: -1.031 | P73: 0.127 | Q73: 5.9e-16 | R73: 0.099 | S73: 0.021 | T73: 1.81e-06 | U73: 0.028 | V73: 6
A74: mQTL | B74: cg19270469 | C74: 11 | E74: 64023919 | F74: rs4672 | G74: 11 | H74: 64009879 | I74: G | J74: A | K74: 0.921 | L74: -0.102 | M74: 0.017 | N74: 3.42e-09 | O74: 0.786 | P74: 0.115 | Q74: 9.74e-12 | R74: -0.129 | S74: 0.029 | T74: 8.01e-06 | U74: 0.014 | V74: 18
A75: mQTL | B75: cg26377677 | C75: 15 | E75: 91412118 | F75: rs4702 | G75: 15 | H75: 91426560 | I75: G | J75: A | K75: 0.449 | L75: 0.057 | M75: 0.01 | N75: 3.52e-09 | O75: -0.482 | P75: 0.06 | Q75: 8.13e-16 | R75: -0.119 | S75: 0.025 | T75: 1.91e-06 | U75: 0.204 | V75: 15
A76: mQTL | B76: cg24888049 | C76: 15 | E76: 91426667 | F76: rs4702 | G76: 15 | H76: 91426560 | I76: G | J76: A | K76: 0.449 | L76: 0.057 | M76: 0.01 | N76: 3.52e-09 | O76: -0.49 | P76: 0.044 | Q76: 2.98e-28 | R76: -0.117 | S76: 0.022 | T76: 1.93e-07 | U76: 0.048 | V76: 14
A77: mQTL | B77: cg09397246 | C77: 15 | E77: 91427361 | F77: rs4702 | G77: 15 | H77: 91426560 | I77: G | J77: A | K77: 0.449 | L77: 0.057 | M77: 0.01 | N77: 3.52e-09 | O77: -0.3 | P77: 0.046 | Q77: 7.65e-11 | R77: -0.191 | S77: 0.044 | T77: 1.22e-05 | U77: 0.048 | V77: 10
A78: mQTL | B78: cg18661868 | C78: 15 | E78: 91427965 | F78: rs4702 | G78: 15 | H78: 91426560 | I78: G | J78: A | K78: 0.449 | L78: 0.057 | M78: 0.01 | N78: 3.52e-09 | O78: -0.342 | P78: 0.062 | Q78: 2.92e-08 | R78: -0.167 | S78: 0.041 | T78: 5.27e-05 | U78: 0.138 | V78: 9
A79: mQTL | B79: cg26899598 | C79: 15 | E79: 91429088 | F79: rs4702 | G79: 15 | H79: 91426560 | I79: G | J79: A | K79: 0.449 | L79: 0.057 | M79: 0.01 | N79: 3.52e-09 | O79: -0.35 | P79: 0.046 | Q79: 1.74e-14 | R79: -0.164 | S79: 0.035 | T79: 2.87e-06 | U79: 0.056 | V79: 14
A80: mQTL | B80: cg03784048 | C80: 16 | E80: 9229746 | F80: rs28455634 | G80: 16 | H80: 9230816 | I80: G | J80: A | K80: 0.623 | L80: 0.063 | M80: 0.01 | N80: 2.63e-10 | O80: -0.513 | P80: 0.063 | Q80: 3.28e-16 | R80: -0.122 | S80: 0.024 | T80: 5.48e-07 | U80: 0.021 | V80: 20
A81: mQTL | B81: cg17142404 | C81: 17 | E81: 1838200 | F81: rs4790841 | G81: 17 | H81: 1835482 | I81: C | J81: T | K81: 0.847 | L81: -0.073 | M81: 0.013 | N81: 3.14e-08 | O81: 0.589 | P81: 0.066 | Q81: 6.52e-19 | R81: -0.124 | S81: 0.026 | T81: 2.73e-06 | U81: 0.105 | V81: 20
A82: mQTL | B82: cg15524101 | C82: 17 | E82: 1838264 | F82: rs4790841 | G82: 17 | H82: 1835482 | I82: C | J82: T | K82: 0.847 | L82: -0.073 | M82: 0.013 | N82: 3.14e-08 | O82: 0.735 | P82: 0.064 | Q82: 2.57e-30 | R82: -0.099 | S82: 0.02 | T82: 6.56e-07 | U82: 0.02 | V82: 20
A83: mQTL | B83: cg03214325 | C83: 17 | E83: 1850539 | F83: rs4790841 | G83: 17 | H83: 1835482 | I83: C | J83: T | K83: 0.847 | L83: -0.073 | M83: 0.013 | N83: 3.14e-08 | O83: -1.506 | P83: 0.041 | Q83: 5.99e-291 | R83: 0.048 | S83: 0.009 | T83: 4.74e-08 | U83: 0.016 | V83: 20
A84: mQTL | B84: cg08892455 | C84: 17 | E84: 1231715 | F84: rs9896486 | G84: 17 | H84: 1252843 | I84: G | J84: T | K84: 0.596 | L84: -0.052 | M84: 0.01 | N84: 5.91e-08 | O84: 0.426 | P84: 0.062 | Q84: 6.69e-12 | R84: -0.121 | S84: 0.028 | T84: 2.1e-05 | U84: 0.016 | V84: 20
A85: mQTL | B85: cg10057218 | C85: 17 | E85: 38074149 | F85: rs11870683 | G85: 17 | H85: 38129841 | I85: T | J85: A | K85: 0.639 | L85: 0.057 | M85: 0.01 | N85: 2.79e-08 | O85: -0.356 | P85: 0.064 | Q85: 3.18e-08 | R85: -0.161 | S85: 0.041 | T85: 8.77e-05 | U85: 0.109 | V85: 20
A86: mQTL | B86: cg26162295 | C86: 17 | E86: 38119207 | F86: rs11870683 | G86: 17 | H86: 38129841 | I86: T | J86: A | K86: 0.639 | L86: 0.057 | M86: 0.01 | N86: 2.79e-08 | O86: -0.297 | P86: 0.048 | Q86: 5.72e-10 | R86: -0.193 | S86: 0.047 | T86: 3.47e-05 | U86: 0.06 | V86: 20
A87: mQTL | B87: cg03671276 | C87: 17 | E87: 38183370 | F87: rs11870683 | G87: 17 | H87: 38129841 | I87: T | J87: A | K87: 0.639 | L87: 0.057 | M87: 0.01 | N87: 2.79e-08 | O87: -0.532 | P87: 0.062 | Q87: 7.11e-18 | R87: -0.108 | S87: 0.023 | T87: 2.97e-06 | U87: 0.033 | V87: 20
A88: mQTL | B88: cg03568305 | C88: 17 | E88: 38183559 | F88: rs11870683 | G88: 17 | H88: 38129841 | I88: T | J88: A | K88: 0.639 | L88: 0.057 | M88: 0.01 | N88: 2.79e-08 | O88: 1.263 | P88: 0.034 | Q88: 1e-300 | R88: 0.045 | S88: 0.008 | T88: 3.77e-08 | U88: 0.055 | V88: 20
A89: mQTL | B89: cg04602939 | C89: 20 | E89: 62184207 | F89: rs880447 | G89: 20 | H89: 62133276 | I89: C | J89: G | K89: 0.416 | L89: 0.053 | M89: 0.011 | N89: 5.79e-07 | O89: 0.404 | P89: 0.063 | Q89: 1.31e-10 | R89: 0.13 | S89: 0.033 | T89: 7.94e-05 | U89: 0.265 | V89: 20
A91: CHR, chromosome; A1 is the effect allele, A2 is the other allele; Freq, frequency; se, standard error; nsnp, number of SNPs; P values are based on the tests indicated and are shown uncorrected and two-sided.
A92: *The Bonferroni corrected significance threshold is P < 8.64e-05 for BrainMeta eQTL and P < 2.21e-05 for BrainMeta sQTL and P < 1.11e-03 for Brain-mMeta mQTL. ^A probe with HEIDI P value >= 0.01 passes the HEIDI test.
A93: All base pair positions are on GRCh37.

Sheet Table S7
A1: Supplementary Table 7. HLA variants with P < 5e-06 for association with bipolar disorder.
A2: CHR | B2: Variant^ | C2: Variant Type | D2: BP | E2: A1† | F2: A2† | G2: A1 freq in cases | H2: A1 freq in controls | I2: INFO | J2: OR (A1 allele) | K2: Beta (A1 allele) | L2: SE | M2: P | N2: Direction* | O2: Neff_half
A3: 6 | B3: HLA_C_0701 | C3: Classical HLA Allele | D3: 31238192 | E3: Present | F3: Absent | G3: 0.146 | H3: 0.155 | I3: 1 | J3: 0.911 | K3: =log(J3,2.71828) -> -0.09321244442 | L3: 0.015 | M3: 3.4e-10 | N3: ++--++++-++-+-+++++++-++--+-+-++++++++++-+++++++ | O3: 37286.34
A4: 6 | B4: AA_C_66_31347429 | C4: HLA Amino Acid | D4: 31239450 | E4: N | F4: K | G4: 0.176 | H4: 0.185 | I4: 0.998 | J4: 0.919 | K4: -0.08446921344 | L4: 0.014 | M4: 8.96e-10 | N4: ++--+++++++-+-+++++++-++--++++++++-+++++-+++++++ | O4: 37286.34
A5: 6 | B5: SNP_C_31347428 | C5: HLA intragenic SNP | D5: 31239449 | E5: G | F5: C | G5: 0.176 | H5: 0.185 | I5: 0.998 | J5: 0.919 | K5: -0.08446921344 | L5: 0.014 | M5: 8.97e-10 | N5: ++--+++++++-+-+++++++-++--++++++++-+++++-+++++++ | O5: 37286.34
A6: 6 | B6: SNP_B_31430769 | C6: HLA intragenic SNP | D6: 31322790 | E6: A | F6: T | G6: 0.12 | H6: 0.127 | I6: 1 | J6: 0.914 | K6: -0.08992476802 | L6: 0.016 | M6: 2.49e-08 | N6: ---+----+--+-------?-+---+-+++----------+-----+- | O6: 37167.79
A7: 6 | B7: SNP_B_31431395 | C7: HLA intragenic SNP | D7: 31323416 | E7: C | F7: G | G7: 0.12 | H7: 0.127 | I7: 1 | J7: 0.914 | K7: -0.08992476802 | L7: 0.016 | M7: 2.5e-08 | N7: ---+----+--+-------?-+---+-+++----------+-----+- | O7: 37167.79
A8: 6 | B8: SNP_B_31431485 | C8: HLA intragenic SNP | D8: 31323506 | E8: T | F8: C | G8: 0.12 | H8: 0.127 | I8: 1 | J8: 0.914 | K8: -0.08992476802 | L8: 0.016 | M8: 2.5e-08 | N8: ---+----+--+-------?-+---+-+++----------+-----+- | O8: 37167.79
A9: 6 | B9: AA_B_9_31432689_D | C9: HLA Amino Acid | D9: 31324710 | E9: Present | F9: Absent | G9: 0.111 | H9: 0.118 | I9: 1 | J9: 0.912 | K9: -0.09211535087 | L9: 0.017 | M9: 4.05e-08 | N9: +++-++++-++-++++++??+-++--+---++++++++++-+++++-+ | O9: 37077.27
A10: 6 | B10: SNP_B_31432690_C | C10: HLA intragenic SNP | D10: 31324711 | E10: Present | F10: Absent | G10: 0.111 | H10: 0.118 | I10: 1 | J10: 0.912 | K10: -0.09211535087 | L10: 0.017 | M10: 4.05e-08 | N10: +++-++++-++-++++++??+-++--+---++++++++++-+++++-+ | O10: 37077.27
A11: 6 | B11: HLA_B_08 | C11: Classical HLA Allele | D11: 31323293 | E11: Present | F11: Absent | G11: 0.111 | H11: 0.118 | I11: 1 | J11: 0.912 | K11: -0.09211535087 | L11: 0.017 | M11: 4.08e-08 | N11: +++-++++-++-++++++??+-++--+---++++++++++-+++++-+ | O11: 37077.27
A12: 6 | B12: HLA_B_0801 | C12: Classical HLA Allele | D12: 31323293 | E12: Present | F12: Absent | G12: 0.111 | H12: 0.118 | I12: 1 | J12: 0.912 | K12: -0.09211535087 | L12: 0.017 | M12: 4.08e-08 | N12: +++-++++-++-++++++??+-++--+---++++++++++-+++++-+ | O12: 37077.27
A13: 6 | B13: SNP_C_31346830 | C13: HLA intragenic SNP | D13: 31238851 | E13: T | F13: C | G13: 0.297 | H13: 0.307 | I13: 1 | J13: 0.944 | K13: -0.0576291516 | L13: 0.012 | M13: 5.06e-07 | N13: +--+--------------+--+-----------+------+--+---- | O13: 37286.34
A14: 6 | B14: SNP_C_31345428 | C14: HLA intragenic SNP | D14: 31237449 | E14: T | F14: C | G14: 0.297 | H14: 0.307 | I14: 1 | J14: 0.944 | K14: -0.0576291516 | L14: 0.012 | M14: 5.09e-07 | N14: +--+--------------+--+-----------+------+--+---- | O14: 37286.34
A15: 6 | B15: SNP_C_31346962_G | C15: HLA intragenic SNP | D15: 31238983 | E15: Present | F15: Absent | G15: 0.351 | H15: 0.362 | I15: 1 | J15: 0.946 | K15: -0.05551274727 | L15: 0.011 | M15: 7.39e-07 | N15: +++-++++++++++++++-++-+++++++++-+-++++++-++-++++ | O15: 37286.34
A16: 6 | B16: SNP_B_31432394 | C16: HLA intragenic SNP | D16: 31324415 | E16: C | F16: A | G16: 0.175 | H16: 0.181 | I16: 0.999 | J16: 0.935 | K16: -0.0672087949 | L16: 0.014 | M16: 1.07e-06 | N16: -++-+++--+--+++++++++-+---+----++-+++++++++++-++ | O16: 37286.34
A17: 6 | B17: SNP_C_31346738 | C17: HLA intragenic SNP | D17: 31238759 | E17: C | F17: T | G17: 0.438 | H17: 0.449 | I17: 1.01 | J17: 0.951 | K17: -0.05024125023 | L17: 0.011 | M17: 2.77e-06 | N17: -++-++++++++++-++++++-++--+++-+-++-++++++++-+-++ | O17: 37286.34
A18: 6 | B18: AA_C_339_31345102_A | C18: HLA Amino Acid | D18: 31237123 | E18: Present | F18: Absent | G18: 0.679 | H18: 0.67 | I18: 1.01 | J18: 1.054 | K18: 0.0525924855 | L18: 0.011 | M18: 3.12e-06 | N18: ---+--------------+--+---+---+-+-+--+------+---- | O18: 37286.34
A19: 6 | B19: AA_C_326_31345141_S | C19: HLA Amino Acid | D19: 31237162 | E19: Present | F19: Absent | G19: 0.679 | H19: 0.67 | I19: 1.01 | J19: 1.054 | K19: 0.0525924855 | L19: 0.011 | M19: 3.14e-06 | N19: ---+--------------+--+---+---+-+-+--+------+---- | O19: 37286.34
A20: 6 | B20: SNP_C_31344996 | C20: HLA intragenic SNP | D20: 31237017 | E20: C | F20: T | G20: 0.324 | H20: 0.333 | I20: 1.01 | J20: 0.95 | K20: -0.05129332889 | L20: 0.011 | M20: 4.68e-06 | N20: -++-+++++++++++++++++-+++-+++-+-+-++-+++++++++++ | O20: 37286.34
A21: 6 | B21: SNP_C_31345006 | C21: HLA intragenic SNP | D21: 31237027 | E21: C | F21: T | G21: 0.324 | H21: 0.333 | I21: 1.01 | J21: 0.95 | K21: -0.05129332889 | L21: 0.011 | M21: 4.68e-06 | N21: -++-+++++++++++++++++-+++-+++-+-+-++-+++++++++++ | O21: 37286.34
A22: 6 | B22: SNP_C_31345212 | C22: HLA intragenic SNP | D22: 31237233 | E22: A | F22: G | G22: 0.324 | H22: 0.333 | I22: 1.01 | J22: 0.95 | K22: -0.05129332889 | L22: 0.011 | M22: 4.69e-06 | N22: +--+-----------------+---+---+-+-+--+----------- | O22: 37286.34
A23: 6 | B23: SNP_C_31346962_C | C23: HLA intragenic SNP | D23: 31238983 | E23: Present | F23: Absent | G23: 0.602 | H23: 0.592 | I23: 1 | J23: 1.051 | K23: 0.04974212535 | L23: 0.011 | M23: 4.72e-06 | N23: ---+----++-++--+--+--+---+-----+-+--+---+--+---- | O23: 37286.34
A24: 6 | B24: AA_C_306_31345748_V | C24: HLA Amino Acid | D24: 31237769 | E24: Present | F24: Absent | G24: 0.676 | H24: 0.667 | I24: 1.01 | J24: 1.053 | K24: 0.05164326789 | L24: 0.011 | M24: 4.78e-06 | N24: +--+-----------------+---+---+-+-+--+----------- | O24: 37286.34
A25: 6 | B25: AA_C_285_31345811_V | C25: HLA Amino Acid | D25: 31237832 | E25: Present | F25: Absent | G25: 0.676 | H25: 0.667 | I25: 1.01 | J25: 1.053 | K25: 0.05164326789 | L25: 0.011 | M25: 4.78e-06 | N25: +--+-----------------+---+---+-+-+--+----------- | O25: 37286.34
A26: 6 | B26: SNP_C_31345753 | C26: HLA intragenic SNP | D26: 31237774 | E26: G | F26: C | G26: 0.324 | H26: 0.333 | I26: 1.01 | J26: 0.95 | K26: -0.05129332889 | L26: 0.011 | M26: 4.83e-06 | N26: -++-+++++++++++++++++-+++-+++-+-+-++-+++++++++++ | O26: 37286.34
A27: 6 | B27: AA_C_306_31345748_A | C27: HLA Amino Acid | D27: 31237769 | E27: Present | F27: Absent | G27: 0.324 | H27: 0.333 | I27: 1.01 | J27: 0.95 | K27: -0.05129332889 | L27: 0.011 | M27: 4.84e-06 | N27: -++-+++++++++++++++++-+++-+++-+-+-++-+++++++++++ | O27: 37286.34
A28: 6 | B28: SNP_C_31345748 | C28: HLA intragenic SNP | D28: 31237769 | E28: G | F28: A | G28: 0.324 | H28: 0.333 | I28: 1.01 | J28: 0.95 | K28: -0.05129332889 | L28: 0.011 | M28: 4.84e-06 | N28: -++-+++++++++++++++++-+++-+++-+-+-++-+++++++++++ | O28: 37286.34
A29: 6 | B29: AA_C_285_31345811_ML | C29: HLA Amino Acid | D29: 31237832 | E29: Present | F29: Absent | G29: 0.324 | H29: 0.333 | I29: 1.01 | J29: 0.95 | K29: -0.05129332889 | L29: 0.011 | M29: 4.84e-06 | N29: -++-+++++++++++++++++-+++-+++-+-+-++-+++++++++++ | O29: 37286.34
A30: 6 | B30: SNP_C_31345989 | C30: HLA intragenic SNP | D30: 31238010 | E30: T | F30: G | G30: 0.324 | H30: 0.333 | I30: 1.01 | J30: 0.95 | K30: -0.05129332889 | L30: 0.011 | M30: 4.84e-06 | N30: +--+-----------------+---+---+-+-+--+----------- | O30: 37286.34
A31: 6 | B31: AA_C_267_31345989_P | C31: HLA Amino Acid | D31: 31238010 | E31: Present | F31: Absent | G31: 0.676 | H31: 0.667 | I31: 1.01 | J31: 1.053 | K31: 0.05164326789 | L31: 0.011 | M31: 4.84e-06 | N31: +--+-----------------+---+---+-+-+--+----------- | O31: 37286.34
A32: 6 | B32: AA_C_267_31345989_Q | C32: HLA Amino Acid | D32: 31238010 | E32: Present | F32: Absent | G32: 0.324 | H32: 0.333 | I32: 1.01 | J32: 0.95 | K32: -0.05129332889 | L32: 0.011 | M32: 4.84e-06 | N32: -++-+++++++++++++++++-+++-+++-+-+-++-+++++++++++ | O32: 37286.34
A33: 6 | B33: AA_C_253_31346031_Q | C33: HLA Amino Acid | D33: 31238052 | E33: Present | F33: Absent | G33: 0.324 | H33: 0.333 | I33: 1.01 | J33: 0.95 | K33: -0.05129332889 | L33: 0.011 | M33: 4.84e-06 | N33: -++-+++++++++++++++++-+++-+++-+-+-++-+++++++++++ | O33: 37286.34
A34: 6 | B34: AA_C_253_31346031_E | C34: HLA Amino Acid | D34: 31238052 | E34: Present | F34: Absent | G34: 0.676 | H34: 0.667 | I34: 1.01 | J34: 1.053 | K34: 0.05164326789 | L34: 0.011 | M34: 4.84e-06 | N34: +--+-----------------+---+---+-+-+--+----------- | O34: 37286.34
A35: 6 | B35: SNP_C_31346032 | C35: HLA intragenic SNP | D35: 31238053 | E35: G | F35: C | G35: 0.324 | H35: 0.333 | I35: 1.01 | J35: 0.95 | K35: -0.05129332889 | L35: 0.011 | M35: 4.84e-06 | N35: -++-+++++++++++++++++-+++-+++-+-+-++-+++++++++++ | O35: 37286.34
A36: 6 | B36: SNP_C_31346238_T | C36: HLA intragenic SNP | D36: 31238259 | E36: Present | F36: Absent | G36: 0.676 | H36: 0.667 | I36: 1.01 | J36: 1.053 | K36: 0.05164326789 | L36: 0.011 | M36: 4.84e-06 | N36: +--+-----------------+---+---+-+-+--+----------- | O36: 37286.34
A37: 6 | B37: AA_C_184_31346238_H | C37: HLA Amino Acid | D37: 31238259 | E37: Present | F37: Absent | G37: 0.676 | H37: 0.667 | I37: 1.01 | J37: 1.053 | K37: 0.05164326789 | L37: 0.011 | M37: 4.84e-06 | N37: +--+-----------------+---+---+-+-+--+----------- | O37: 37286.34
A38: 6 | B38: SNP_C_31345812_C | C38: HLA intragenic SNP | D38: 31237833 | E38: Present | F38: Absent | G38: 0.676 | H38: 0.667 | I38: 1.01 | J38: 1.053 | K38: 0.05164326789 | L38: 0.011 | M38: 4.85e-06 | N38: +--+-----------------+---+---+-+-+--+----------- | O38: 37286.34
A39: 6 | B39: AA_C_184_31346238_PR | C39: HLA Amino Acid | D39: 31238259 | E39: Present | F39: Absent | G39: 0.324 | H39: 0.333 | I39: 1.01 | J39: 0.95 | K39: -0.05129332889 | L39: 0.011 | M39: 4.85e-06 | N39: -++-+++++++++++++++++-+++-+++-+-+-++-+++++++++++ | O39: 37286.34
A40: 6 | B40: SNP_C_31346297 | C40: HLA intragenic SNP | D40: 31238318 | E40: G | F40: A | G40: 0.324 | H40: 0.333 | I40: 1.01 | J40: 0.95 | K40: -0.05129332889 | L40: 0.011 | M40: 4.85e-06 | N40: -++-+++++++++++++++++-+++-+++-+-+-++-+++++++++++ | O40: 37286.34
A41: 6 | B41: SNP_C_31346503 | C41: HLA intragenic SNP | D41: 31238524 | E41: G | F41: A | G41: 0.324 | H41: 0.333 | I41: 1.01 | J41: 0.95 | K41: -0.05129332889 | L41: 0.011 | M41: 4.85e-06 | N41: -++-+++++++++++++++++-+++-+++-+-+-++-+++++++++++ | O41: 37286.34
A42: 6 | B42: SNP_C_31346514 | C42: HLA intragenic SNP | D42: 31238535 | E42: T | F42: C | G42: 0.324 | H42: 0.333 | I42: 1.01 | J42: 0.95 | K42: -0.05129332889 | L42: 0.011 | M42: 4.85e-06 | N42: +--+-----------------+---+---+-+-+--+----------- | O42: 37286.34
A43: 6 | B43: SNP_C_31346640 | C43: HLA intragenic SNP | D43: 31238661 | E43: G | F43: A | G43: 0.324 | H43: 0.333 | I43: 1.01 | J43: 0.95 | K43: -0.05129332889 | L43: 0.011 | M43: 4.85e-06 | N43: -++-+++++++++++++++++-+++-+++-+-+-++-+++++++++++ | O43: 37286.34
A44: 6 | B44: SNP_C_31346936 | C44: HLA intragenic SNP | D44: 31238957 | E44: A | F44: C | G44: 0.324 | H44: 0.333 | I44: 1.01 | J44: 0.95 | K44: -0.05129332889 | L44: 0.011 | M44: 4.86e-06 | N44: +--+-----------------+---+---+-+-+--+----------- | O44: 37286.34
A45: 6 | B45: AA_C_147_31346936 | C45: HLA Amino Acid | D45: 31238957 | E45: L | F45: W | G45: 0.324 | H45: 0.333 | I45: 1.01 | J45: 0.95 | K45: -0.05129332889 | L45: 0.011 | M45: 4.86e-06 | N45: +--+-----------------+---+---+-+-+--+----------- | O45: 37286.34
A46: 6 | B46: SNP_C_31346793 | C46: HLA intragenic SNP | D46: 31238814 | E46: T | F46: C | G46: 0.324 | H46: 0.333 | I46: 1.01 | J46: 0.95 | K46: -0.05129332889 | L46: 0.011 | M46: 4.87e-06 | N46: +--+-----------------+---+---+-+-+--+----------- | O46: 37286.34
A47: 6 | B47: SNP_C_31347206 | C47: HLA intragenic SNP | D47: 31239227 | E47: C | F47: T | G47: 0.324 | H47: 0.333 | I47: 1.01 | J47: 0.95 | K47: -0.05129332889 | L47: 0.011 | M47: 4.89e-06 | N47: -++-+++++++++++++++++-+++-+++-+-+-++-+++++++++++ | O47: 37286.34
A49: CHR, chromosome; BP, GRCh37 base-pair position; P, two-sided uncorrected p-value from an inverse variance-weighted fixed effects model meta-analysis;
A50: OR, odds ratio; SE, standard error; freq, frequency; INFO, imputation information score (average weighted by effective sample size per cohort); Neff_half, half the effective sample size;
A51: ^Classical HLA alleles are named HLA_[GENE]_[ALLELE], HLA Amino Acids are named AA_[GENE]_[AMINO ACID POSITION]_[GENETIC POSITION OF CENTER OF CODON]_[ALLELE], HLA intragenic SNPs are named SNP_[GENE]_[POSITION]_[ALLELE]
A52: †For HLA Amino Acids, letters appended to the variant name or in the A1/A2 columns refer to the single letter amino acid code. G - Glycine , P – Proline, A - Alanine , V - Valine , L – Leucine, I – Isoleucine, M – Methionine, C – Cysteine, F – Phenylalanine, Y – Tyrosine, W – Tryptophan, H – Histidine, K – Lysine, R – Arginine, Q – Glutamine, N – Asparagine, E - Glutamic Acid, D - Aspartic Acid, S – Serine, T - Threonine
A53: *Direction of effect for the allele tested in each sample in the meta-analysis. + is risk increasing; - is risk decreasing; ? indicates the SNP was not present in a cohort, 0 indicates no association in either direction

Sheet Table S8
A1: Supplementary Table 8. HLA variants with P < 1E-03 for association with bipolar disorder after conditioning on rs1541269.
A2: CHR | B2: Variant | C2: Variant Type | D2: BP | E2: A1† | F2: A2† | G2: A1 freq in cases | H2: A1 freq in controls | I2: INFO | J2: OR (A1 allele) | K2: Beta (A1 allele) | L2: SE | M2: P | N2: Direction* | O2: Neff_half
A3: 6 | B3: AA_C_156_31346909_QDW | C3: HLA Amino Acid | D3: 31238930 | E3: Present | F3: Absent | G3: 0.251 | H3: 0.238 | I3: 1 | J3: 1.04404 | K3: =log(J3,2.71828) -> 0.04309783189 | L3: 0.0125 | M3: 0.0005565 | N3: +---+----+--+-----+++------+--+-----+------+-++- | O3: 37223.19
A4: 6 | B4: AA_C_156_31346909_LR | C4: HLA Amino Acid | D4: 31238930 | E4: Present | F4: Absent | G4: 0.749 | H4: 0.762 | I4: 1 | J4: 0.95782 | K4: -0.04309543909 | L4: 0.0125 | M4: 0.000557 | N4: -+++-++++-++-+++++---++++++-++-+++++-++++++-+--+ | O4: 37223.19
A5: 6 | B5: AA_C_156_31346909_LRM | C5: HLA Amino Acid | D5: 31238930 | E5: Present | F5: Absent | G5: 0.749 | H5: 0.762 | I5: 1 | J5: 0.95782 | K5: -0.04309543909 | L5: 0.0125 | M5: 0.000557 | N5: -+++-++++-++-+++++---++++++-++-+++++-++++++-+--+ | O5: 37223.19
A6: 6 | B6: AA_C_156_31346909_LRC | C6: HLA Amino Acid | D6: 31238930 | E6: Present | F6: Absent | G6: 0.749 | H6: 0.762 | I6: 1 | J6: 0.95782 | K6: -0.04309543909 | L6: 0.0125 | M6: 0.000557 | N6: -+++-++++-++-+++++---++++++-++-+++++-++++++-+--+ | O6: 37223.19
A8: CHR, chromosome; BP, GRCh37 base-pair position; P, two-sided uncorrected p-value from an inverse variance-weighted fixed effects model meta-analysis;
A9: OR, odds ratio; SE, standard error; freq, frequency; INFO, imputation information score (average weighted by effective sample size per cohort); Neff_half, half the effective sample size;
A10: ^Classical HLA alleles are named HLA_[GENE]_[ALLELE], HLA Amino Acids are named AA_[GENE]_[AMINO ACID POSITION]_[GENETIC POSITION OF CENTER OF CODON]_[ALLELE], HLA intragenic SNPs are named SNP_[GENE]_[POSITION]_[ALLELE]
A11: †For HLA Amino Acids, letters appended to the variant name or in the A1/A2 columns refer to the single letter amino acid code. G - Glycine , P – Proline, A - Alanine , V - Valine , L – Leucine, I – Isoleucine, M – Methionine, C – Cysteine, F – Phenylalanine, Y – Tyrosine, W – Tryptophan, H – Histidine, K – Lysine, R – Arginine, Q – Glutamine, N – Asparagine, E - Glutamic Acid, D - Aspartic Acid, S – Serine, T - Threonine
A12: *Direction of effect for the allele tested in each sample in the meta-analysis. + is risk increasing; - is risk decreasing; ? indicates the SNP was not present in a cohort, 0 indicates no association in either direction

Sheet Table S8_old (hidden)
A1: Supplementary Table 8. Polygenic risk score analysis results for European and non European bipolar disorder cohorts.
A2: Target cohort | B2: Target cohort ancestry | C2: PRS method | D2: Target cohort N cases | E2: Target cohort N controls | F2: R2 % (liability scale) | G2: P | H2: Beta PRS on BD | I2: N SNPs in PRS | J2: Mix weights Finemapping* | K2: Mix weights PRS-CS* | L2: R2 ^(% liability scale) | M2: 95% CI ^ (R2) | N2: p value ^ (R2)
A3: amq1 | B3: European | C3: PRS-CS | D3: 417 | E3: 533 | F3: 10.032 | G3: 3.0698e-32 | H3: 0.865 | I3: 1115457 | J3: - | K3: - | L3: 10.00393 | M3: - | N3: - | P3: var2 | Q3: var2_perc | R3: -1.96*(var2_perc) | S3: 1.96*(var2_perc) | T3: 95%CI: R2 liab -/+ 1.96*(var2_perc)
A4: amq1 | B4: European | C4: Polypred-P | D4: 417 | E4: 533 | F4: 10.304 | G4: 4.79e-33 | H4: 0.878 | I4: 1115457 | J4: 0.562 | K4: 0.496 | L4: 10.355 | M4: [10.271-10.439] | N4: 0.1541039871 | P4: 0.00043 | Q4: =P4*100 -> 0.043 | R4: =-1.96*Q4 -> -0.08428 | S4: =+1.96*Q4 -> 0.08428 | T4: =concatenate("[",(L4+R4),"-",(L4+S4),"]") -> [10.27072-10.43928]
A5: amq1 | B5: European | C5: SuSiE + PRS-CS | D5: 417 | E5: 533 | F5: 10.293 | G5: 5.15e-33 | H5: 0.878 | I5: 1115457 | J5: 0.668 | K5: 0.5 | L5: 10.338 | M5: [10.254-10.422] | N5: 0.162435601 | P5: 0.00043 | Q5: 0.043 | R5: -0.08428 | S5: 0.08428 | T5: [10.25372-10.42228]
A6: rom4 | B6: European | C6: PRS-CS | D6: 102 | E6: 198 | F6: 15.015 | G6: 5.3295e-15 | H6: 1.176 | I6: 1114738 | J6: - | K6: - | L6: 14.937 | M6: - | N6: -
A7: rom4 | B7: European | C7: Polypred-P | D7: 102 | E7: 198 | F7: 16.81 | G7: 1.5097e-16 | H7: 1.269 | I7: 1114738 | J7: 1.185 | K7: 0.494 | L7: 16.6998 | M7: [16.382-17.0173] | N7: 0.07495799761 | P7: 0.00162 | Q7: =P7*100 -> 0.162 | R7: =-1.96*Q7 -> -0.31752 | S7: =+1.96*Q7 -> 0.31752 | T7: =concatenate("[",(L7+R7),"-",(L7+S7),"]") -> [16.38228-17.01732]
A8: rom4 | B8: European | C8: SuSiE + PRS-CS | D8: 102 | E8: 198 | F8: 16.759 | G8: 1.67e-16 | H8: 1.272 | I8: 1114738 | J8: 1.39 | K8: 0.51 | L8: 16.6 | M8: [16.282-16.918] | N8: 0.08931685306 | P8: 0.00162 | Q8: 0.162 | R8: -0.31752 | S8: 0.31752 | T8: [16.28248-16.91752]
A9: for2107 | B9: European | C9: PRS-CS | D9: 147 | E9: 696 | F9: 11.826 | G9: 1.4898e-20 | H9: 0.918 | I9: 1115349 | J9: - | K9: - | L9: 12.008 | M9: - | N9: -
A10: for2107 | B10: European | C10: Polypred-P | D10: 147 | E10: 696 | F10: 12.684 | G10: 6.738e-22 | H10: 0.944 | I10: 1115349 | J10: 0.679 | K10: 0.308 | L10: 13.07 | M10: [12.996-13.144] | N10: 0.08496782718 | P10: 0.00038 | Q10: =P10*100 -> 0.038 | R10: =-1.96*Q10 -> -0.07448 | S10: =+1.96*Q10 -> 0.07448 | T10: =concatenate("[",(L10+R10),"-",(L10+S10),"]") -> [12.99552-13.14448]
A11: for2107 | B11: European | C11: SuSiE + PRS-CS | D11: 147 | E11: 696 | F11: 12.213 | G11: 3.69e-21 | H11: 0.927 | I11: 1115349 | J11: 0.565 | K11: 0.329 | L11: 12.538 | M11: [12.464-12.6125] | N11: 0.166677562 | P11: 0.00038 | Q11: 0.038 | R11: -0.07448 | S11: 0.07448 | T11: [12.46352-12.61248]
A12: Korean | B12: East Asian | C12: PRS-CS | D12: 770 | E12: 497 | F12: 3.1 | G12: 3.91e-14 | H12: 0.453 | I12: 959431 | J12: - | K12: -
A13: Korean | B13: East Asian | C13: Polypred-P | D13: 770 | E13: 497 | F13: 3.22 | G13: 1.3e-14 | H13: 0.462 | I13: 959431 | J13: 0.453 | K13: 0.315
A14: Korean | B14: East Asian | C14: SuSiE + PRS-CS | D14: 770 | E14: 497 | F14: 3.19 | G14: 1.7e-14 | H14: 0.46 | I14: 959431 | J14: 0.474 | K14: 0.319
A15: Japanese | B15: East Asian | C15: PRS-CS | D15: 2963 | E15: 61697 | F15: 2.343 | G15: 5.65e-90 | H15: 0.38 | I15: 1097220 | J15: - | K15: -
A16: Japanese | B16: East Asian | C16: Polypred-P | D16: 2963 | E16: 61697 | F16: 2.61 | G16: 5.19e-100 | H16: 0.402 | I16: 1097220 | J16: 0.125 | K16: 0.05
A17: Japanese | B17: East Asian | C17: SuSiE + PRS-CS | D17: 2963 | E17: 61697 | F17: 2.608 | G17: 6.6e-100 | H17: 0.402 | I17: 1097220 | J17: 0.153 | K17: 0.051
A18: gpc_aa_om25_w1 | B18: African American | C18: PRS-CS | D18: 445 | E18: 690
A19: gpc_aa_om25_w1 | B19: African American | C19: Polypred-P | D19: 445 | E19: 690 | Q19: =D5/(D5+E5) -> 0.4389473684
A20: gpc_aa_om25_w1 | B20: African American | C20: SuSiE + PRS-CS | D20: 445 | E20: 690
A21: gpc_aa_om25_w2 | B21: African American | C21: PRS-CS | D21: 125 | E21: 368
A22: gpc_aa_om25_w2 | B22: African American | C22: Polypred-P | D22: 125 | E22: 368
A23: gpc_aa_om25_w2 | B23: African American | C23: SuSiE + PRS-CS | D23: 125 | E23: 368
A24: gpc_gsa_w1 | C24: PRS-CS | D24: 923 | E24: 1028
A25: gpc_gsa_w1 | C25: Polypred-P | D25: 923 | E25: 1028
A26: gpc_gsa_w1 | C26: SuSiE + PRS-CS | D26: 923 | E26: 1028
A27: gpc_gsa_w2 | C27: PRS-CS | D27: 799 | E27: 1792
A28: gpc_gsa_w2 | C28: Polypred-P | D28: 799 | E28: 1792
A29: gpc_gsa_w2 | C29: SuSiE + PRS-CS | D29: 799 | E29: 1792
A30: gpc_costarican_mega | B30: Latinx? | C30: PRS-CS | D30: 272 | E30: 365
A31: gpc_costarican_mega | C31: Polypred-P | D31: 272 | E31: 365
A32: gpc_costarican_mega | C32: SuSiE + PRS-CS | D32: 272 | E32: 365
A33: gpc_latino_gsa_w1 | B33: Latinx | C33: PRS-CS | D33: 83 | E33: 163
A34: gpc_latino_gsa_w1 | B34: Latinx | C34: Polypred-P | D34: 83 | E34: 163
A35: gpc_latino_gsa_w1 | B35: Latinx | C35: SuSiE + PRS-CS | D35: 83 | E35: 163
A36: gpc_latino_omni25_w1 | B36: Latinx | C36: PRS-CS | D36: 516 | E36: 1601
A37: gpc_latino_omni25_w1 | B37: Latinx | C37: Polypred-P | D37: 516 | E37: 1601
A38: gpc_latino_omni25_w1 | B38: Latinx | C38: SuSiE + PRS-CS | D38: 516 | E38: 1601
A39: R2 was calculated on the liability scale using 2% population prevalence of bipolar disorder; P value of association between polygenic risk score and bipolar disorder;
A40: *Mix weights refers to the weight assigned to the fine-mapping effect sizes and PRS-CS effect sizes by PolyPred;
A41: ^ 95% CI calculated for each cohort comparing the base method (PRS-CS) against its fine-mapping informed counterparts; p values of comparison between the PRS models are one-tailed

Sheet Table S9
A1: Supplementary Table 9. Polygenic risk score analysis results for European and non European bipolar disorder cohorts.
A2: Target cohort | B2: Target cohort ancestry | C2: PRS method | D2: Target cohort N cases | E2: Target cohort N controls | F2: N SNPs in PRS | G2: Mix weights Fine-mapping* | H2: Mix weights PRS-CS* | I2: Beta PRS on BD | J2: R2 (% liability scale)† | K2: Lower 95% CI† | L2: Upper 95% CI† | M2: P† | N2: P Fine-mapping-informed PRS vs. PRS-CS^ | O2: R2 difference Fine-mapping-informed PRS - PRS-CS (% liability scale)
A3: amq1 | B3: European | C3: PRS-CS | D3: 417 | E3: 533 | F3: 1115457 | G3: - | H3: - | I3: 0.865 | J3: 10.07261 | K3: 10.004 | L3: 10.141 | M3: 3.07e-32 | N3: - | O3: -
A4: amq1 | B4: European | C4: Polypred-P | D4: 417 | E4: 533 | F4: 7481595 | G4: 0.3372775749 | H4: 0.4426082112 | I4: 0.898 | J4: 10.73076 | K4: 10.658 | L4: 10.803 | M4: 3.61e-34 | N4: 0.06769253617 | O4: =J4-J3 -> 0.65815
A5: amq1 | B5: European | C5: SuSiE + PRS-CS | D5: 417 | E5: 533 | F5: 7481595 | G5: 0.261067331 | H5: 0.5159608402 | I5: 0.886 | J5: 10.39098 | K5: 10.321 | L5: 10.461 | M5: 2.6e-33 | N5: 0.1519423006 | O5: =J5-J3 -> 0.31837
A6: rom4 | B6: European | C6: PRS-CS | D6: 102 | E6: 198 | F6: 1114738 | G6: - | H6: - | I6: 1.176 | J6: 14.97403 | K6: 14.668 | L6: 15.28 | M6: 5.33e-15 | N6: - | O6: -
A7: rom4 | B7: European | C7: Polypred-P | D7: 102 | E7: 198 | F7: 7431243 | G7: 0.4390427217 | H7: 0.4670789962 | I7: 1.245 | J7: 16.50823 | K7: 16.18 | L7: 16.836 | M7: 3.58e-16 | N7: 0.0984006986 | O7: =J7-J6 -> 1.5342
A8: rom4 | B8: European | C8: SuSiE + PRS-CS | D8: 102 | E8: 198 | F8: 7431243 | G8: 0.3415636573 | H8: 0.5049225083 | I8: 1.219 | J8: 15.76461 | K8: 15.447 | L8: 16.082 | M8: 1.23e-15 | N8: 0.1855549834 | O8: =J8-J6 -> 0.79058
A9: for2107 | B9: European | C9: PRS-CS | D9: 147 | E9: 696 | F9: 1115349 | G9: - | H9: - | I9: 0.918 | J9: 12.05076 | K9: 11.952 | L9: 12.149 | M9: 1.49e-20 | N9: - | O9: -
A10: for2107 | B10: European | C10: Polypred-P | D10: 147 | E10: 696 | F10: 7480104 | G10: 0.1592450633 | H10: 0.3171310564 | I10: 0.935 | J10: 12.46219 | K10: 12.361 | L10: 12.564 | M10: 3.66e-21 | N10: 0.1958632789 | O10: =J10-J9 -> 0.41143
A11: for2107 | B11: European | C11: SuSiE + PRS-CS | D11: 147 | E11: 696 | F11: 7480104 | G11: 0.1103198439 | H11: 0.3342932757 | I11: 0.926 | J11: 12.23978 | K11: 12.14 | L11: 12.34 | M11: 7.75e-21 | N11: 0.2779325661 | O11: =J11-J9 -> 0.18902
A12: Korean | B12: East Asian | C12: PRS-CS | D12: 770 | E12: 497 | F12: 959431 | G12: - | H12: - | I12: 0.47295 | J12: 3.366 | K12: 3.346 | L12: 3.385 | M12: 3.5825e-15 | N12: - | O12: -
A13: Korean | B13: East Asian | C13: Polypred-P | D13: 770 | E13: 497 | F13: 5069674 | G13: 0.20984 | H13: 0.31101 | I13: 0.48613 | J13: 3.554 | K13: 3.534 | L13: 3.575 | M13: 6.463e-16 | N13: 0.35 | O13: =J13-J12 -> 0.188
A14: Korean | B14: East Asian | C14: SuSiE + PRS-CS | D14: 770 | E14: 497 | F14: 5069674 | G14: 0.19672 | H14: 0.31613 | I14: 0.48381 | J14: 3.517 | K14: 3.496 | L14: 3.537 | M14: 8.9786e-16 | N14: 0.403 | O14: =J14-J12 -> 0.151
A15: Japanese | B15: East Asian | C15: PRS-CS | D15: 2936 | E15: 61724 | F15: 1097220 | G15: - | H15: - | I15: 0.3786964 | J15: 2.284815 | K15: 2.2847 | L15: 2.2849 | M15: 3.31e-88 | N15: - | O15: -
A16: Japanese | B16: East Asian | C16: Polypred-P | D16: 2936 | E16: 61724 | F16: 7155360 | G16: 0.0627 | H16: 0.0445 | I16: 0.4129783 | J16: 2.739185 | K16: 2.7391 | L16: 2.74 | M16: 1.06e-104 | N16: 2.28e-06 | O16: =J16-J15 -> 0.45437
A17: Japanese | B17: East Asian | C17: SuSiE + PRS-CS | D17: 2936 | E17: 61724 | F17: 7155360 | G17: 0.0612 | H17: 0.0455 | I17: 0.4084671 | J17: 2.67504 | K17: 2.6749 | L17: 2.6751 | M17: 1.9e-102 | N17: 1.22e-05 | O17: =J17-J15 -> 0.390225
A18: gpc_aa_om25_w1 | B18: African American | C18: PRS-CS | D18: 445 | E18: 690 | F18: 1049105 | G18: - | H18: - | I18: 0.41069822 | J18: 0.423 | K18: 0.41978697 | L18: 0.42599518 | M18: 4.29e-06 | N18: - | O18: -
A19: gpc_aa_om25_w1 | B19: African American | C19: Polypred-P | D19: 445 | E19: 690 | F19: 5674035 | G19: 3.08351722 | H19: 0.5615235 | I19: 0.2002512 | J19: 0.571 | K19: 0.56744039 | L19: 0.57566227 | M19: 0.00156587 | N19: 0.71206569 | O19: =J19-J18 -> 0.148
A20: gpc_aa_om25_w1 | B20: African American | C20: SuSiE + PRS-CS | D20: 445 | E20: 690 | F20: 5674035 | G20: 3.000205 | H20: 0.54653057 | I20: 0.2260823 | J20: 0.702 | K20: 0.69788044 | L20: 0.70787189 | M20: 0.00039148 | N20: 0.50766364 | O20: =J20-J18 -> 0.279
A21: gpc_aa_om25_w2 | B21: African American | C21: PRS-CS | D21: 125 | E21: 368 | F21: 1049105 | G21: - | H21: - | I21: 0.40692307 | J21: 0.732 | K21: 0.7196715 | L21: 0.74545768 | M21: 0.00784004 | N21: - | O21: -
A22: gpc_aa_om25_w2 | B22: African American | C22: Polypred-P | D22: 125 | E22: 368 | F22: 5674035 | G22: 2.63271121 | H22: 0.53782178 | I22: 0.1772533 | J22: 0.247 | K22: 0.24190696 | L22: 0.25251412 | M22: 0.13494651 | N22: 0.613693378 | O22: =J22-J21 -> -0.485
A23: gpc_aa_om25_w2 | B23: African American | C23: SuSiE + PRS-CS | D23: 125 | E23: 368 | F23: 5674035 | G23: 1.21488388 | H23: 0.32823059 | I23: 0.08233936 | J23: 0.022 | K23: 0.02028212 | L23: 0.0237736 | M23: 0.51891543 | N23: 0.370595591 | O23: =J23-J21 -> -0.71
A24: gpc_aa_gsa_w1 | B24: African American | C24: PRS-CS | D24: 923 | E24: 1028 | F24: 1049105 | G24: - | H24: - | I24: 0.12284059 | J24: 0.014 | K24: 0.01466402 | L24: 0.01491818 | M24: 0.07868834 | N24: - | O24: -
A25: gpc_aa_gsa_w1 | B25: African American | C25: Polypred-P | D25: 923 | E25: 1028 | F25: 5674035 | G25: 1.08075132 | H25: 1.01219459 | I25: 0.01987974 | J25: 0.0575 | K25: 0.05718943 | L25: 0.05778601 | M25: 0.14795392 | N25: 0.35658524 | O25: =J25-J24 -> 0.0435
A26: gpc_aa_gsa_w1 | B26: African American | C26: SuSiE + PRS-CS | D26: 923 | E26: 1028 | F26: 5674035 | G26: 0.64871386 | H26: 1.09803345 | I26: 0.14466807 | J26: 0.036 | K26: 0.03604421 | L26: 0.0364706 | M26: 0.03072622 | N26: 0.41773623 | O26: =J26-J24 -> 0.022
A27: gpc_aa_gsa_w2 | B27: African American | C27: PRS-CS | D27: 799 | E27: 1792 | F27: 1049105 | G27: - | H27: - | I27: 0.19984732 | J27: 0.021 | K27: 0.02166594 | L27: 0.02188734 | M27: 0.0031878 | N27: - | O27: -
A28: gpc_aa_gsa_w2 | B28: African American | C28: Polypred-P | D28: 799 | E28: 1792 | F28: 5674035 | G28: 0.2319561 | H28: 0.31756976 | I28: 0.18552204 | J28: 0.479 | K28: 0.47797441 | L28: 0.48094147 | M28: 2.65e-05 | N28: 0.04384416 | O28: =J28-J27 -> 0.458
A29: gpc_aa_gsa_w2 | B29: African American | C29: SuSiE + PRS-CS | D29: 799 | E29: 1792 | F29: 5674035 | G29: 0.3561941 | H29: 0.00414807 | I29: 0.19544793 | J29: 0.503 | K29: 0.50240966 | L29: 0.50552258 | M29: 1.08e-05 | N29: 0.035117439 | O29: =J29-J27 -> 0.482
A30: gpc_costarican_mega | B30: Latino | C30: PRS-CS | D30: 272 | E30: 365 | F30: 1049105 | G30: - | H30: - | I30: 0.81213399 | J30: 0.122 | K30: 0.12266882 | L30: 0.12267921 | M30: 1.5e-17 | N30: - | O30: -
A31: gpc_costarican_mega | B31: Latino | C31: Polypred-P | D31: 272 | E31: 365 | F31: 5674035 | G31: 1.6502337 | H31: 0.42156928 | I31: 0.90185717 | J31: 0.961 | K31: 0.95168395 | L31: 0.97148881 | M31: 1.86e-22 | N31: 0.00206919 | O31: =J31-J30 -> 0.839
A32: gpc_costarican_mega | B32: Latino | C32: SuSiE + PRS-CS | D32: 272 | E32: 365 | F32: 5674035 | G32: 1.43648646 | H32: 0.50170555 | I32: 0.84495939 | J32: 0.11270898 | K32: 0.11270623 | L32: 0.11271174 | M32: 1.34e-20 | N32: 0.04619313 | O32: =J32-J30 -> -0.00929102
A33: gpc_latino_gsa_w1 | B33: Latino | C33: PRS-CS | D33: 83 | E33: 163 | F33: 1049105 | G33: - | H33: - | I33: 0.53276659 | J33: 0.429 | K33: 0.42860846 | L33: 0.43074976 | M33: 0.00290443 | N33: - | O33: -
A34: gpc_latino_gsa_w1 | B34: Latino | C34: Polypred-P | D34: 83 | E34: 163 | F34: 5674035 | G34: 1.57991895 | H34: 0.50829793 | I34: 0.56525965 | J34: 0.257 | K34: 0.24855269 | L34: 0.26508238 | M34: 0.00036747 | N34: 0.158826 | O34: =J34-J33 -> -0.172
A35: gpc_latino_gsa_w1 | B35: Latino | C35: SuSiE + PRS-CS | D35: 83 | E35: 163 | F35: 5674035 | G35: 0.99001449 | H35: 0.37340367 | I35: 0.55902655 | J35: 0.29645 | K35: 0.2962104 | L35: 0.29670866 | M35: 0.00065091 | N35: 0.220813717 | O35: =J35-J33 -> -0.13255
A36: gpc_latino_omni25_w1 | B36: Latino | C36: PRS-CS | D36: 516 | E36: 1601 | F36: 1049105 | G36: - | H36: - | I36: 0.52615703 | J36: 0.35997 | K36: 0.35994245 | L36: 0.35999899 | M36: 3.46e-18 | N36: - | O36: -
A37: gpc_latino_omni25_w1 | B37: Latino | C37: Polypred-P | D37: 516 | E37: 1601 | F37: 5674035 | G37: 1.91469384 | H37: 0.75801984 | I37: 0.53615862 | J37: 0.3145 | K37: 0.31450135 | L37: 0.31458291 | M37: 3.26e-18 | N37: 0.25121196 | O37: =J37-J36 -> -0.04547
A38: gpc_latino_omni25_w1 | B38: Latino | C38: SuSiE + PRS-CS | D38: 516 | E38: 1601 | F38: 5674035 | G38: 2.98771758 | H38: 0.60571887 | I38: 0.52615862 | J38: 0.35996 | K38: 0.35993684 | L38: 0.35999337 | M38: 3.46e-18 | N38: 0.24001196 | O38: =J38-J36 -> -1e-05
A40: *Mix weights refers to the weight assigned to the fine-mapping PRS and the PRS-CS PRS by PolyPred;
A41: †R2, 95% confidence intervals (CI) and P value of association between PRS and bipolar disorder vs. control status in the target cohort were calculated using the r2redux package. The R2 was calculated on the liability scale using 2% population prevalence of bipolar disorder;
A42: ^P value of comparison between R2 from SuSiE+PRS-CS vs. PRS-CS or PolyPred-P vs. PRS-CS were calculated using r2redux package. These P values are one-tailed.
